Cogmind - Beta 11.1 @@@ ROGUE MODE // 2022.05.24 @ 14:24:08 Player: Benkyo Result: Destroyed Tau Ceti IV! Performance ------------- Evolutions (9) 4500 Regions Visited (34) 6800 Robots Destroyed (494) 2470 Value Destroyed (27803) 27803 Prototype IDs (314) 6280 Alien Tech Used (12) 2400 Bonus (61758) 61758 TOTAL SCORE: 112011 Bonus ------- Triggered High Security 500 Triggered Max Security 1000 High Alert Combat Kills 11829 Follower Combat Kills 3028 Network Hubs Disabled 400 Aligned with FarCom 300 Met Data Miner 300 Destroyed Z-Imprinter 1000 Triggered Deep Caves Wall 500 Exposed GOLEM Chamber 500 Met Zhirov 300 Built Enhanced Grunts 300 A7 Reached Mainframe 300 Used Core Reset Matrix 3000 Scanned by Researcher 500 Pursued by Intercept 1000 Integrated Exoskeleton 5000 Destroyed MAIN.C Guards 500 Met MAIN.C 5000 Destroyed MAIN.C Shell 5000 Destroyed MAIN.C 10000 Met Architect 300 Started Test 138-B 500 Started Test 138-C 8000 Destroyed A8 300 Destroyed A6 400 Destroyed A5 500 Destroyed A2 1000 Win 3000 Friendly Fire -2499 Cogmind --------- Core Integrity 1110/1600 Matter 300/300 Energy 340/340 System Corruption 0% Temperature Cool (0) Movement Walking (30) Location Subspace Parts ------- > --- POWER (2) -------- Zero-point Reactor > --- PROPULSION (3) --- Sigix Exoskeleton > --- UTILITY (5) ------ Experimental Core Analyzer Improved Armor Integrity Analyzer Experimental Phase Shifter Graphene Brace Experimental Force Field > --- WEAPON (2) ------- Sigix Shearcannon > --- INVENTORY (5) ---- Experimental Energy Well (600) Experimental System Purifier Core Reset Matrix Core Cannon Peak State ------------ > --- POWER ------------ Zero-point Reactor > --- PROPULSION ------- Sigix Exoskeleton > --- UTILITY ---------- Experimental Core Analyzer Improved Armor Integrity Analyzer Experimental Phase Shifter Graphene Brace Experimental Force Field > --- WEAPON ----------- Sigix Shearcannon > --- INVENTORY -------- Experimental Energy Well High-powered Transdimensional Reconstructor Core Reset Matrix Core Cannon [Rating: 241] Favorites ----------- Power Assembled Flux Generator Engine Light Angular Momentum Engine Power Core Micro Nuclear Core Reactor Assembled Flux Generator Propulsion Assembled Alloy Leg Treads Centrium Heavy Treads Leg Assembled Alloy Leg Wheel Armored Huge Wheel Flight Unit Impulse Thruster Utility High-capacity Storage Unit Device Advanced Sensor Array Storage High-capacity Storage Unit Processor Advanced Signal Interpreter Hackware Hacking Suite Protection Assembled Alloy Armor Weapon Assembled Focal Cannon Energy Gun Heavy Laser Energy Cannon Assembled Focal Cannon Ballistic Gun Assault Rifle Ballistic Cannon Antimatter Cannon Launcher Long-range Missile Launcher Special Weapon Improved Plasma Cutter Impact Weapon Hammer Slashing Weapon Master Tearclaws Piercing Weapon CR-A16's Pointy Stick Build | -11 -10 -10 -10 -9 -8 -7 -7 -7 -7 -6 -6 -6 -6 -6 -6 -5 -5 -5 -5 -5 -5 -4 -4 -4 -4 -3 -3 -3 -2 -2 -2 -1 -1 -1 ------- Run | Scr Mat Min Exi Min Mat Fac Low Low Dat Pro Fac Low Low Zio Dee Pro Fac Ext Cet Arc Hub Fac Upp Upp Zhi Pro Res Tes Res Qua Sec Acc Com Ac0 Slots Evolved 18 | . . . . . 4 2 . . . . 2 . . . . . 2 . . . . 2 . . . . 2 . 2 . . 2 . . Power 2 | . . . . . . . . . . . 1 . . . . . . . . . . 1 . . . . . . . . . . . . Propulsion 4 | . . . . . . . . . . . . . . . . . . . . . . . . . . . 2 . 2 . . . . . Utility 12 | . . . . . 4 2 . . . . 1 . . . . . 2 . . . . 1 . . . . . . . . . 2 . . Weapon . | . . . . . . . . . . . . . . . . . . . . . . . . . . . . . . . . . . . Parts Attached 533 | 7 10 2 7 4 23 11 1 17 1 6 27 4 19 17 36 8 13 10 2 3 4 16 12 26 11 9 13 37 17 37 44 51 26 2 Power 34 | 1 1 1 . 1 2 1 . 1 . . 2 . 1 . 4 . . . . . . 2 2 . 1 . 2 1 1 2 3 2 3 . Engine 6 | 1 1 1 . 1 1 . . . . . . . . . . . . . . . . . . . 1 . . . . . . . . . Core 10 | . . . . . 1 1 . 1 . . 2 . 1 . 2 . . . . . . 1 1 . . . . . . . . . . . Reactor 18 | . . . . . . . . . . . . . . . 2 . . . . . . 1 1 . . . 2 1 1 2 3 2 3 . Propulsion 22 | 2 5 . 3 . 1 . . . . 2 1 . . . . . . . . . . . . . 1 . 3 1 2 1 . . . . Treads 9 | . 3 . . . . . . . . 1 . . . . . . . . . . . . . . . . 1 1 2 1 . . . . Leg 4 | . . . 2 . 1 . . . . 1 . . . . . . . . . . . . . . . . . . . . . . . . Wheel 6 | 2 2 . 1 . . . . . . . 1 . . . . . . . . . . . . . . . . . . . . . . . Hover . | . . . . . . . . . . . . . . . . . . . . . . . . . . . . . . . . . . . Flight 3 | . . . . . . . . . . . . . . . . . . . . . . . . . 1 . 2 . . . . . . . Utility 410 | 2 3 1 2 1 12 8 1 16 1 3 19 4 18 7 20 6 13 10 2 3 3 14 9 25 9 8 8 34 13 32 39 47 15 2 Device 282 | 1 . . . . 5 6 1 12 1 3 6 3 13 . 9 4 9 7 1 3 1 9 6 16 4 6 6 26 10 27 34 41 10 2 Storage 22 | 1 2 . 2 1 1 . . . . . 1 . . . 1 . . . . . . . . . 2 . . 2 . 2 3 1 3 . Processor 31 | . . . . . 3 1 . . . . 2 1 1 4 2 . 2 . . . . 1 . 1 . . 1 1 1 1 2 5 2 . Hackware 9 | . . . . . 1 1 . . . . 1 . . 1 . . 1 1 . . 2 . . . . . . . 1 . . . . . Protection 66 | . 1 1 . . 2 . . 4 . . 9 . 4 2 8 2 1 2 1 . . 4 3 8 3 2 1 5 1 2 . . . . Artifact . | . . . . . . . . . . . . . . . . . . . . . . . . . . . . . . . . . . . Weapon 67 | 2 1 . 2 2 8 2 . . . 1 5 . . 10 12 2 . . . . 1 . 1 1 . 1 . 1 1 2 2 2 8 . Energy Gun 11 | . . . 1 1 . . . . . . 2 . . 2 3 . . . . . . . . 1 . 1 . . . . . . . . Energy Cannon 28 | . . . . . 4 2 . . . . 1 . . 3 7 . . . . . . . . . . . . 1 . 2 1 2 5 . Ballistic Gun 7 | 2 1 . . 1 2 . . . . . . . . . . . . . . . . . . . . . . . . . 1 . . . Ballistic Cannon 5 | . . . . . 2 . . . . . 1 . . 2 . . . . . . . . . . . . . . . . . . . . Launcher 7 | . . . . . . . . . . . . . . 1 2 . . . . . 1 . . . . . . . 1 . . . 2 . Special Weapon 1 | . . . . . . . . . . . . . . . . . . . . . . . . . . . . . . . . . 1 . Impact Weapon 4 | . . . 1 . . . . . . 1 1 . . 1 . . . . . . . . . . . . . . . . . . . . Slashing Weapon 1 | . . . . . . . . . . . . . . 1 . . . . . . . . . . . . . . . . . . . . Piercing Weapon 3 | . . . . . . . . . . . . . . . . 2 . . . . . . 1 . . . . . . . . . . . Special Melee Weapon . | . . . . . . . . . . . . . . . . . . . . . . . . . . . . . . . . . . . Unidentified Prototypes 33 | . . . . . . . . 1 . 1 1 . . 6 8 . 1 . 1 . . . . . 4 . . 2 . 2 2 3 1 . Corrupted Parts 1 | . . . . . . . . . . . . . . 1 . . . . . . . . . . . . . . . . . . . . System Corruption 3 | . . . . . . . . . . . . . . 3 . . . . . . . . . . . . . . . . . . . . Parts Lost 29 | . . 1 . . 4 . . 1 . . 2 . . . 4 2 1 . . . 4 3 . 2 . . . 1 2 . 2 . . . Power 5 | . . . . . 1 . . 1 . . . . . . 1 . 1 . . . . . . 1 . . . . . . . . . . Propulsion . | . . . . . . . . . . . . . . . . . . . . . . . . . . . . . . . . . . . Utility 16 | . . . . . 2 . . . . . 1 . . . 3 1 . . . . 2 2 . 1 . . . 1 2 . 1 . . . Weapon 8 | . . 1 . . 1 . . . . . 1 . . . . 1 . . . . 2 1 . . . . . . . . 1 . . . Highest Loss Streak 4 | . . 1 . . 1 . . 1 . . 1 . . . 3 1 1 . . . 4 2 . 1 . . . 1 1 . 1 . . . To Critical Strikes . | . . . . . . . . . . . . . . . . . . . . . . . . . . . . . . . . . . . Average Slot Usage (%) 83 | . 98 96 33 71 95 98 79 69 64 70 78 78 79 89 77 84 87 87 88 88 87 87 89 85 86 90 88 85 82 78 77 68 72 69 Engine 1 | . 13 13 . . 2 . . . . . . . . . . . . . . . . . . . 3 5 2 . . . . . . . Core 3 | . . . . . 5 7 7 6 7 7 7 12 12 12 5 . . . . . . . . . . . . . . . . . . . Reactor 4 | . . . . . . . . . . . . . . . 4 6 5 5 5 5 5 8 9 5 5 5 5 9 8 8 8 9 9 8 Treads 1 | . 13 13 . . . . . . . . . . . . . . . . . . . . . . . . 1 4 8 12 11 . . . Leg 8 | . . . 7 28 18 15 15 14 14 14 7 . . . . 8 11 11 11 11 11 10 10 10 10 10 9 9 7 . . 9 9 8 Wheel 1 | . 14 13 7 . . . . . . . 2 6 6 6 6 1 . . . . . . . . . . . . . . . . . . Device 17 | . 3 . . . 8 13 10 14 14 20 20 14 18 18 8 12 24 25 22 22 16 16 20 25 21 24 24 26 21 16 19 23 33 26 Storage 8 | . 14 13 11 14 9 7 7 7 7 7 6 6 6 6 7 12 11 11 11 11 11 9 10 10 10 10 9 9 8 8 8 10 9 . Processor 11 | . . . . . 23 23 14 7 7 7 10 12 11 18 16 18 10 11 11 11 11 12 12 10 10 10 9 9 9 12 11 7 2 17 Hackware 1 | . . . . . 6 14 7 . . . 5 3 . . . . 1 1 . . 10 7 . . . . . . . . . . . . Protection 5 | . 10 13 . . 2 . . 1 . . 3 4 5 9 7 4 5 5 9 11 5 7 11 9 12 10 6 4 4 6 3 . . . Energy Gun 1 | . . . 3 21 5 . . . . . 2 6 6 5 4 1 . . . . . . . . . . . . . . . . . . Energy Cannon 11 | . . . . . 8 15 15 14 14 14 9 6 6 5 8 16 16 15 16 16 15 14 14 15 15 14 13 12 11 11 11 8 8 8 Ballistic Gun 1 | . 27 27 . 6 3 . . . . . . . . . . . . . . . . . . . . . . . . . . . . . Naked Turns 86 | . . 21 65 . . . . . . . . . . . . . . . . . . . . . . . . . . . . . . . Heaviest Build 228 | 15 34 38 40 49 61 62 137 137 137 137 89 151 156 101 163 137 145 151 147 147 143 165 165 165 163 158 165 205 207 228 209 65 72 54 Greatest Support 225 | 20 20 12 60 60 60 60 60 60 60 60 60 28 28 28 28 60 80 60 60 60 60 60 80 80 80 80 80 80 210 225 225 72 72 60 Greatest Overweight (x) 5 | . 2 3 3 . 1 1 2 2 2 2 3 5 5 3 5 4 2 4 2 2 2 2 2 2 5 1 2 3 3 1 . 1 1 . Average Overweight (x) 1 | . 1 2 . . . . . . . . . 3 3 2 3 2 1 2 2 2 2 1 1 1 2 1 1 1 2 . . . . . Largest Inventory Capacity 25 | 8 15 15 20 20 20 20 20 20 20 20 20 20 20 20 20 20 20 20 20 20 20 20 20 20 20 20 20 25 25 25 25 10 10 5 Average Capacity 19 | 7 14 14 13 17 20 20 20 20 20 20 20 20 20 20 20 20 20 20 20 20 20 20 20 20 20 20 20 23 25 25 23 10 9 5 Most Carried 25 | 7 15 15 15 17 20 20 20 20 20 20 20 20 20 20 20 20 20 20 20 20 20 20 19 20 20 20 20 25 25 25 25 10 10 5 Average Carried 18 | 4 13 14 7 15 19 19 17 18 18 19 19 19 19 19 18 19 19 20 19 19 19 18 15 19 19 20 19 22 22 24 23 9 9 5 Final Capacity 25 | 8 15 5 15 20 20 20 20 20 20 20 20 20 20 20 20 20 20 20 20 20 20 20 20 20 20 20 20 25 25 25 10 10 5 5 Final Carried 25 | 7 15 5 13 17 20 20 16 20 17 20 20 18 20 20 20 20 20 20 20 20 19 16 19 20 20 20 19 25 24 25 10 10 5 5 Class Distribution -------------------- 23% | Generator-Golem 22% | Mutant 13% | Golem 5% | Alien-Sigix 5% | Commander-Golem 4% | Hacker-Skirmisher 4% | Scavenger-Skirmisher 4% | Scavenger-Tank 3% | Generator-Skirmisher 3% | Scavenger-Gunner Dominant Class ---------------- Mutant | -10/Materials Mutant | -10/Mines Mutant | -10/Exiles Mutant | -9/Mines Mutant | -8/Materials Hacker-Skirmisher | -7/Factory Mutant | -7/Lower Caves Mutant | -7/Lower Caves Mutant | -7/Data Miner Mutant | -6/Proximity Caves Mutant | -6/Factory Gunner | -6/Lower Caves Scavenger-Skirmisher | -6/Lower Caves Scavenger-Tank | -6/Zion Scavenger-Gunner | -6/Deep Caves Golem | -5/Proximity Caves Golem | -5/Factory Commander-Golem | -5/Extension Commander-Golem | -5/Cetus Commander-Golem | -5/Archives Commander-Golem | -5/Hub_04(d) Generator-Golem | -4/Factory Generator-Golem | -4/Upper Caves Generator-Golem | -4/Upper Caves Generator-Golem | -4/Zhirov Generator-Golem | -3/Proximity Caves Generator-Golem | -3/Research Generator-Golem | -3/Testing Generator-Golem | -2/Research Generator-Skirmisher | -2/Quarantine Generator-Skirmisher | -2/Section 7 Alien-Sigix | -1/Access Alien-Sigix | -1/Command Alien-Sigix | -1/Access_0 Resources | -11 -10 -10 -10 -9 -8 -7 -7 -7 -7 -6 -6 -6 -6 -6 -6 -5 -5 -5 -5 -5 -5 -4 -4 -4 -4 -3 -3 -3 -2 -2 -2 -1 -1 -1 ----------- Run | Scr Mat Min Exi Min Mat Fac Low Low Dat Pro Fac Low Low Zio Dee Pro Fac Ext Cet Arc Hub Fac Upp Upp Zhi Pro Res Tes Res Qua Sec Acc Com Ac0 Matter Collected 7000 | 317 335 184 36 91 440 140 10 175 . 80 334 45 243 66 765 141 125 100 20 . 67 154 120 288 50 120 170 335 228 340 516 541 324 100 Remotely . | . . . . . . . . . . . . . . . . . . . . . . . . . . . . . . . . . . . Salvage Created 26977 | 143 453 164 . 246 1413 350 70 357 . . 1006 . 189 . 1249 1508 955 1077 192 136 1357 1313 288 1828 382 67 585 1539 1078 867 2195 2410 1914 1646 Parts 1145 | 9 33 10 . 16 75 19 3 16 . . 36 . 6 . 15 71 74 30 3 9 52 66 14 53 4 6 25 88 54 40 62 110 41 105 Haulers Intercepted 13 | . 1 . . . 1 1 . . . . 2 . . . . . . . . . 3 . . 1 . . . 1 . . 1 2 . . Recyclers Shooed 10 | . . . . 3 3 . . . . . 2 . . . . . . . . . . . . . . . 1 . . . 1 . . . Parts Field Recycled . | . . . . . . . . . . . . . . . . . . . . . . . . . . . . . . . . . . . Retrieved Matter . | . . . . . . . . . . . . . . . . . . . . . . . . . . . . . . . . . . . Parts Self-Destructed 183 | . . . . . . . 2 27 . 4 . 2 5 . . 69 . . . . . . 15 52 1 6 . . . . . . . . Prevented 6 | . . . . . . . . 4 . . . 1 . . . . . . . . . . . . 1 . . . . . . . . . Kills | -11 -10 -10 -10 -9 -8 -7 -7 -7 -7 -6 -6 -6 -6 -6 -6 -5 -5 -5 -5 -5 -5 -4 -4 -4 -4 -3 -3 -3 -2 -2 -2 -1 -1 -1 ------- Run | Scr Mat Min Exi Min Mat Fac Low Low Dat Pro Fac Low Low Zio Dee Pro Fac Ext Cet Arc Hub Fac Upp Upp Zhi Pro Res Tes Res Qua Sec Acc Com Ac0 Combat Hostiles Destroyed 448 | . 10 4 . 4 29 4 1 8 . . 8 . 3 . 50 20 14 15 3 . 8 21 3 22 . 1 2 21 12 12 28 32 96 17 Guns 41 | . 10 4 . 4 16 . . . . . . . 1 . 4 2 . . . . . . . . . . . . . . . . . . Cannons 262 | . . . . . 11 4 1 8 . . 6 . 2 . 5 17 14 15 3 . 4 21 2 22 . 1 2 20 10 11 24 32 10 17 AOE 130 | . . . . . 1 . . . . . . . . . 37 . . . . . 4 . . . . . . . 2 . . . 86 . Classes Destroyed 32 | 2 5 1 . . 3 1 2 2 . . 1 . 1 . 4 2 2 1 . . . 1 . 1 . . . . . . 1 1 1 . Worker 17 | . . 2 . 1 2 2 . . . . 1 . . . . . . . . . 3 . . . . . . . . 1 . 3 2 . Builder 6 | . 1 . . . . . . . . . 1 . . . . . . . . . . 1 . . . . . . 1 2 . . . . Tunneler 7 | 3 . 1 . . 1 . . . . . 1 . . . . . . . . . . . . . . . . . . . . 1 . . Hauler 13 | . 1 . . . 1 1 . . . . 2 . . . . . . . . . 3 . . 1 . . . 1 . . 1 2 . . Recycler 21 | 1 . . . 2 3 . . . . . 2 . . . . . . . . . 2 . . . . . 3 . 2 . 2 2 2 . Carrier 12 | . . . . . . . . . . . . . . . . . . . . . . . . . . . . . . . . . 12 . Minesweeper 2 | . . . . . . . 1 . . . . . . . . . . . . . . . 1 . . . . . . . . . . . Mechanic 1 | . . . . . . . . . . . . . . . . 1 . . . . . . . . . . . . . . . . . . Operator 8 | . . . . . 1 . . . . . . . . . . . 1 . . 4 . 1 . . . . . . . . . 1 . . Watcher 29 | . 3 . . . 4 2 . . . . 3 . . . . . 2 1 . . 1 . . . . . 1 3 . 3 1 4 1 . Swarmer 53 | . 6 3 . 4 8 . . 4 . . . . 3 . . . . . . . 3 5 . 1 . . . 4 . . . 11 1 . Saboteur 13 | . . . . . . . . . . . . . . . . . . . . . . . . 1 . . . . . . . 6 6 . Grunt 136 | . 4 1 . . 10 1 . 3 . . 4 . . . . 11 2 6 1 . 2 5 . 11 . . . 7 . . 14 2 52 . Brawler 6 | . . . . . . . . 1 . . . . . . . 2 . . . . . 1 . 2 . . . . . . . . . . Duelist 12 | . . . . . 2 . . . . . . . . . . 1 . 1 . . 1 2 . 4 . . . 1 . . . . . . Protector 2 | . . . . . . . . . . . . . . . . . . . . . . 1 . . . . . . . . 1 . . . Researcher 4 | . . . . . . . . 1 . . . . . . . . . . . . . . . . . . . . . . 3 . . . Sentry 29 | . . . . . 9 1 . . . . . . . . . 2 1 6 . . 1 1 . 2 . . 1 . 1 . 3 1 . . Demolisher 1 | . . . . . . . . . . . . . . . . . . 1 . . . . . . . . . . . . . . . . Specialist 10 | . . . . . . . . . . . . . . . . . 2 . . . . . . . . . . . 2 . . . 6 . Hunter 19 | . . . . . . . . . . . 1 . . . . 4 1 . . . . 2 . . . . . 2 3 5 . . 1 . Programmer 72 | . . . . . . 2 . . . . 3 . . . . . 7 . . . . 4 2 1 . 1 1 7 5 7 5 3 24 . Heavy 3 | . . . . . . . . . . . . . . . . . 1 . . . . . . . . . . . 1 . 1 . . . Behemoth 2 | . . . . . . . . . . . . . . . . 1 . . . . . . 1 . . . . . . . . . . . Cetus Guard 2 | . . . . . . . . . . . . . . . . . . . 2 . . . . . . . . . . . . . . . S7 Guard 2 | . . . . . . . . . . . . . . . . . . . . . . . . . . . . . . . 2 . . . M Guard 2 | . . . . . . . . . . . . . . . . . . . . . . . . . . . . . . . . . 2 . M Shell/Atk 1 | . . . . . . . . . . . . . . . . . . . . . . . . . . . . . . . . . 1 . Enhanced Grunt 11 | . . . . . . . . . . . . . . . . . . . . . 3 . . . . . . . . . . . . 8 Enhanced Sentry 1 | . . . . . . . . . . . . . . . . . . . . . . . . . . . . . . . . . . 1 Enhanced Hunter 4 | . . . . . . . . . . . . . . . . . . . . . . . . . . . . . . . . . . 4 Lightning 1 | . . . . . . . . . . . . . . . . . . . . . 1 . . . . . . . . . . . . . Tracker 5 | . . . . . . . . . . . . . . . . . . . . . . . . . . . . . . . . 5 . . Combat Programmer 4 | . . . . . . . . . . . . . . . . . . . . . . . . . . . . . . . . 3 1 . Striker 1 | . . . . . . . . . . . . . . . . . . . . . . . . . . . . . . . . 1 . . Executioner 2 | . . . . . . . . . . . . . . . . . . . . . . . . . . . . . . . 2 . . . Z-Light 2 | . . . . . . . . . . . . . . . 2 . . . . . . . . . . . . . . . . . . . Decomposer 2 | . . . . . . . . . . . . . 1 . . . . . . . . . 1 . . . . . . . . . . . Packrat 1 | . . . . . . . . . . . . . . . . . . . . . . . . 1 . . . . . . . . . . Samaritan 3 | . . . . . . . . . . . . . 3 . . . . . . . . . . . . . . . . . . . . . Assembler 2 | . . . . . . . . . . . . . . . 2 . . . . . . . . . . . . . . . . . . . Assembled 38 | . . . . . . . . . . . . . . . 38 . . . . . . . . . . . . . . . . . . . Golem 10 | . . . . . . . . . . . . . . . 10 . . . . . . . . . . . . . . . . . . . Thug 1 | . . . . . . . . . . . . . . . . . . . . . . . . . . . . . . . . 1 . . Guerrilla 1 | . . . . . . . . . . . . . . . . . . 1 . . . . . . . . . . . . . . . . Mutant 2 | . . . . . . . 1 . . . . . . . . . . . . . . . . 1 . . . . . . . . . . Best Kill Streak 99 | 4 3 3 . 3 8 2 1 4 . . 9 . 1 . 40 7 3 2 2 2 5 7 2 10 . 1 5 6 8 4 6 17 99 7 Combat Bots Only 86 | . 3 3 . 3 7 1 1 4 . . 4 . 1 . 38 7 3 2 2 . 3 7 2 10 . 1 1 6 5 3 5 12 86 7 Max Kills in Single Turn 99 | 1 2 1 . 1 2 1 1 1 . . 1 . 1 . 23 1 1 2 1 1 4 2 1 1 . 1 1 1 2 2 2 5 99 2 Gunslinging 1 | . 1 . . . . . . . . . . . . . . . . . . . . . . . . . . . . . . . . . Exploded 86 | . . . . . 1 . . . . . . . . . 23 . . . . . 3 . . . . . . . 2 . . . 86 . Melee . | . . . . . . . . . . . . . . . . . . . . . . . . . . . . . . . . . . . Uniques/NPCs Destroyed 7 | . . . . . . . . . . . . . . . 1 . . . . . . . . . . . . . . . . . 2 4 Z-Imprinter (-6/Deep Caves) MAIN.C Shell (-1/Command) MAIN.C (-1/Command) A8 (-1/Access_0) A6 (-1/Access_0) A2 (-1/Access_0) A5 (-1/Access_0) Combat | -11 -10 -10 -10 -9 -8 -7 -7 -7 -7 -6 -6 -6 -6 -6 -6 -5 -5 -5 -5 -5 -5 -4 -4 -4 -4 -3 -3 -3 -2 -2 -2 -1 -1 -1 -------- Run | Scr Mat Min Exi Min Mat Fac Low Low Dat Pro Fac Low Low Zio Dee Pro Fac Ext Cet Arc Hub Fac Upp Upp Zhi Pro Res Tes Res Qua Sec Acc Com Ac0 Damage Taken 20456 | . 302 655 . 102 1112 221 64 697 . . 696 33 210 . 1066 1881 1039 86 39 . 1270 1681 246 1536 . 18 23 1573 1036 780 1621 732 1143 594 Core 2326 | . 23 114 . 27 211 61 3 81 . . 71 11 40 . 205 200 58 . . . 114 73 63 116 . . . 42 . . 75 169 357 212 Absorbed by Shields 3591 | . . . . . . . . . . . . . . . . . . . 12 . . . . . . . . . . 472 1193 681 608 625 Reduced by Siege Mode 171 | . . . . . . . . . . . . . . . . . . . . . . . . . . . . . . . 171 . . . Redirected to Shielding 245 | . . . . . 37 . . . . . . . . . 208 . . . . . . . . . . . . . . . . . . . Regen/Repaired (Parts) 315 | . 165 . . . 61 10 . . . . 79 . . . . . . . . . . . . . . . . . . . . . . . Core Remaining (%) 72 | 100 . . . 34 61 . . . . 79 . . . . . 38 . . . . 82 . . . . 78 . 96 . . 86 . . 69 Volleys Fired 1079 | 8 39 26 . 17 94 25 8 26 . 2 54 . 15 . 68 33 61 26 8 16 28 46 7 53 6 6 8 67 33 49 81 69 49 51 Largest 3 | 2 2 2 . 2 2 2 2 2 . 1 3 . 3 . 3 3 3 3 3 3 3 3 3 3 3 3 3 3 3 3 3 1 1 1 Hottest 300 | 40 40 40 . 83 128 128 98 98 . 30 139 . 139 . 251 110 75 75 75 75 75 75 75 75 75 75 75 75 93 180 195 300 300 180 Shots Fired 2240 | 16 79 53 . 28 175 39 14 50 . 2 108 . 43 . 119 99 139 74 20 39 77 122 19 149 18 12 24 154 84 103 210 71 49 51 Gun 375 | 16 79 53 . 28 96 . . . . . 17 . 16 . 50 6 . . . . . . . . . . . . . . 14 . . . Cannon 1842 | . . . . . 79 39 14 50 . 2 91 . 27 . 56 93 139 74 20 39 75 122 19 149 18 12 24 154 80 103 196 71 45 51 Launcher 20 | . . . . . . . . . . . . . . . 13 . . . . . 2 . . . . . . . 4 . . . 1 . Special 3 | . . . . . . . . . . . . . . . . . . . . . . . . . . . . . . . . . 3 . Kinetic 258 | 16 79 53 . 11 58 . . . . . 11 . 12 . 4 . . . . . . . . . . . . . . . 14 . . . Thermal 1700 | . . . . 17 117 39 14 50 . 2 81 . 31 . 28 93 139 74 20 39 75 122 19 149 18 12 24 154 80 103 193 1 6 . Explosive 19 | . . . . . . . . . . . . . . . 13 . . . . . 2 . . . . . . . 4 . . . . . Electromagnetic 45 | . . . . . . . . . . . 16 . . . 29 . . . . . . . . . . . . . . . . . . . Slashing 167 | . . . . . . . . . . . . . . . . . . . . . . . . . . . . . . . 3 70 43 51 Phasic 51 | . . . . . . . . . . . . . . . 45 6 . . . . . . . . . . . . . . . . . . Robot Hit Streak 66 | 9 11 6 . 5 23 14 2 7 . . 38 . 7 . 26 22 10 22 7 11 16 13 9 66 13 8 19 16 13 9 29 7 40 15 Robot Miss Streak 11 | 1 3 3 . 2 4 1 2 3 . . 3 . 3 . 2 2 2 2 3 2 4 1 1 2 1 . 1 2 2 5 2 11 4 10 Penetration Max 1 | . . . . . . . . . . . . . . . . . . . . . . . . . . . . . . . . 1 1 1 Secondary Targets 2 | . 1 1 . . . . . . . . . . . . . . . . . . . . . . . . . . . . . . . . Max Gunslinging Chain 1 | . 1 1 . . . . . . . . . . . . . . . . . . . . . . . . . . . . . . . . Shots Hit Robots 1364 | 12 49 26 . 16 127 23 7 31 . . 74 . 23 . 80 67 50 41 12 28 45 76 14 95 11 5 16 75 50 41 137 48 41 44 Core Hits 1105 | 5 23 12 . 9 118 13 4 15 . . 30 . 9 . 126 39 26 26 2 8 38 36 4 41 6 1 9 40 32 20 55 79 140 139 Critical Kills 7 | . . . . . 1 . . . . . 2 . . . . . . . . . . . . . . . . . . 1 3 . . . Critical Parts Destroyed 4 | . . . . . . . . . . . . . . . . . . . . . . . . . . . . . . . 3 . 1 . Critical Strikes 33 | . . . . . 2 . . . . . 3 . . . 6 . . . . . . . . . . . . . . 1 6 5 3 7 Meltdown 7 | . . . . . 1 . . . . . 2 . . . . . . . . . . . . . . . . . . 1 3 . . . Destroy 4 | . . . . . . . . . . . . . . . . . . . . . . . . . . . . . . . 3 . 1 . Blast 1 | . . . . . 1 . . . . . . . . . . . . . . . . . . . . . . . . . . . . . Corrupt 1 | . . . . . . . . . . . 1 . . . . . . . . . . . . . . . . . . . . . . . Sever 14 | . . . . . . . . . . . . . . . . . . . . . . . . . . . . . . . . 5 2 7 Intensify 6 | . . . . . . . . . . . . . . . 6 . . . . . . . . . . . . . . . . . . . Melee Attacks 29 | . . . . . . . . . . 1 2 . . 13 . 11 . . . . . . 2 . . . . . . . . . . . Impact 16 | . . . . . . . . . . 1 2 . . 13 . . . . . . . . . . . . . . . . . . . . Slashing . | . . . . . . . . . . . . . . . . . . . . . . . . . . . . . . . . . . . Piercing 13 | . . . . . . . . . . . . . . . . 11 . . . . . . 2 . . . . . . . . . . . Sneak Attacks . | . . . . . . . . . . . . . . . . . . . . . . . . . . . . . . . . . . . Combat Hostiles . | . . . . . . . . . . . . . . . . . . . . . . . . . . . . . . . . . . . Follow-up Attacks . | . . . . . . . . . . . . . . . . . . . . . . . . . . . . . . . . . . . Damage Inflicted 178173 | 150 650 346 . 228 2627 608 168 668 . . 1827 . 604 . 5808 2697 2477 2266 611 1266 2858 3807 705 4695 407 291 830 3673 3121 2654 7667 7233 106197 11034 Guns 4352 | 150 650 336 . 228 1325 . . . . . 155 . 174 . 1068 198 . . . . . . . . . . . . . . 68 . . . Cannons 73658 | . . . . . 1257 608 168 668 . . 1672 . 430 . 1248 2362 2477 2266 611 1266 1941 3807 705 4695 407 291 830 3673 2746 2654 7599 7232 11011 11034 Explosions 99914 | . . . . . . . . . . . . . . . 3492 . . . . . 913 . . . . . . . 375 . . . 95134 . Melee 137 | . . . . . . . . . . . . . . . . 137 . . . . . . . . . . . . . . . . . . Ramming 60 | . . 10 . . 45 . . . . . . . . . . . . . . . 4 . . . . . . . . . . 1 . . Kinetic 2441 | 150 650 336 . 55 690 . . . . . 231 . 189 . 72 . . . . . . . . . . . . . . . 68 . . . Thermal 139988 | . . . . 173 1892 608 168 668 . . 1461 . 415 . 687 2362 2477 2266 611 1266 1941 3807 705 4695 407 291 830 3673 2746 2654 7599 . 95586 . Explosive 3919 | . . . . . . . . . . . . . . . 3419 . . . . . 125 . . . . . . . 375 . . . . . Electromagnetic 1563 | . . . . . . . . . . . 135 . . . 640 . . . . . 788 . . . . . . . . . . . . . Impact . | . . . . . . . . . . . . . . . . . . . . . . . . . . . . . . . . . . . Slashing 28877 | . . . . . . . . . . . . . . . . . . . . . . . . . . . . . . . . 7232 10611 11034 Piercing 137 | . . . . . . . . . . . . . . . . 137 . . . . . . . . . . . . . . . . . . Phasic 1188 | . . . . . . . . . . . . . . . 990 198 . . . . . . . . . . . . . . . . . . Highest Corruption 7 | . 1 1 1 1 . 1 . . . . 2 2 2 3 5 5 2 . . . 5 . . 2 . . . 3 . 1 3 5 7 . Average Corruption 2 | . 1 1 1 1 . 1 . . . . 1 2 1 3 5 5 1 . . . 2 . . 1 . . . 1 . 1 1 4 5 . Corruption Purged 24 | . . . . . . 1 . . . . . . 2 . . . 2 . . . . . . 2 . . . 5 . 1 4 . 7 . Corruption Blocked 1 | . . . . . . . . . . . . . . . . . . . . . . . . . . . . . . . 1 . . . Effects 149 | . 3 4 4 3 . . . . . . 3 16 21 . 19 43 . . . . 2 . . 3 . . . 1 . . 1 15 11 . Message Errors 31 | . 1 . 1 1 . . . . . . . 6 4 . 6 8 . . . . . . . . . . . . . . . 2 2 . Matter Fused 35 | . . 1 1 . . . . . . . 1 2 6 . 5 9 . . . . 1 . . 2 . . . . . . . 5 2 . Heat Flow Errors 14 | . . . 1 . . . . . . . . 2 2 . . 6 . . . . . . . 1 . . . . . . 1 . 1 . Energy Discharges 20 | . . 1 . 1 . . . . . . . 3 1 . 4 7 . . . . . . . . . . . . . . . 2 1 . Parts Rejected 1 | . . . . . . . . . . . . . . . . . . . . . . . . . . . . . . . . . 1 . Data Loss (minor) 18 | . 1 1 . . . . . . . . 1 2 4 . . 6 . . . . . . . . . . . 1 . . . 1 1 . Data Loss (major) 13 | . . . 1 . . . . . . . . 1 2 . 4 2 . . . . 1 . . . . . . . . . . 1 1 . Misfires 12 | . 1 1 . . . . . . . . 1 . 2 . . 3 . . . . . . . . . . . . . . . 3 1 . Alerts 2 | . . . . 1 . . . . . . . . . . . 1 . . . . . . . . . . . . . . . . . . Weapon Failures 3 | . . . . . . . . . . . . . . . . 1 . . . . . . . . . . . . . . . 1 1 . Overload Shots . | . . . . . . . . . . . . . . . . . . . . . . . . . . . . . . . . . . . Overflow Damage 13825 | . . . . . 11 26 . . . . 21 . 59 . 108 82 167 63 45 132 190 110 82 93 36 43 66 102 78 199 379 199 11469 65 Projectiles 2666 | . . . . . 11 26 . . . . 21 . 59 . 38 82 167 63 45 132 144 110 82 93 36 43 66 102 78 199 379 199 426 65 Explosions 11159 | . . . . . . . . . . . . . . . 70 . . . . . 46 . . . . . . . . . . . 11043 . Melee . | . . . . . . . . . . . . . . . . . . . . . . . . . . . . . . . . . . . Knockbacks 8 | . . . . . 2 . . . . . 4 . 2 . . . . . . . . . . . . . . . . . . . . . Impact . | . . . . . . . . . . . . . . . . . . . . . . . . . . . . . . . . . . . Kinetic 8 | . . . . . 2 . . . . . 4 . 2 . . . . . . . . . . . . . . . . . . . . . Secondary . | . . . . . . . . . . . . . . . . . . . . . . . . . . . . . . . . . . . Self-Inflicted Damage 357 | . . 5 . . . . . . . . . . . . 125 . 69 . . . 158 . . . . . . . . . . . . . Shots 6 | . . . . . . . . . . . . . . . 2 . 1 . . . 3 . . . . . . . . . . . . . Rammed 2 | . . 2 . . . . . . . . . . . . . . . . . . . . . . . . . . . . . . . . Targets Rammed 7 | . . 2 . . 2 . . . . . . . . . . . . . . . 2 . . . . . . . . . . 1 . . Kicked 5 | . . . . . 2 . . . . . . . . . . . . . . . 2 . . . . . . . . . . 1 . . Crushed . | . . . . . . . . . . . . . . . . . . . . . . . . . . . . . . . . . . . Highest Temperature 440 | 6 16 69 117 78 186 90 51 196 . 3 198 212 216 . 223 306 27 36 30 30 27 300 18 178 . 6 45 440 129 8 201 123 123 20 Average Temperature 67 | 6 7 34 60 31 38 25 18 100 . 3 56 91 53 . 86 88 10 11 14 12 11 67 6 50 . 4 22 148 54 6 132 48 66 20 Received Heat Transfer 3256 | . 69 170 . . 360 9 42 261 . . 201 . . . 92 454 87 27 . . 117 355 18 349 . . 9 246 . 8 227 37 67 51 Effects 12 | . . . . . . . . . . . . . . . . . . . . . . . . . . . . 4 . . 8 . . . Shutdowns 1 | . . . . . . . . . . . . . . . . . . . . . . . . . . . . 1 . . . . . . Energy Bleed 4 | . . . . . . . . . . . . . . . . . . . . . . . . . . . . 1 . . 3 . . . Interference 5 | . . . . . . . . . . . . . . . . . . . . . . . . . . . . . . . 5 . . . Short Circuit 1 | . . . . . . . . . . . . . . . . . . . . . . . . . . . . 1 . . . . . . Damage (minor) 1 | . . . . . . . . . . . . . . . . . . . . . . . . . . . . 1 . . . . . . Siege Activations 5 | . . . . . . . . . . . . . . . . . . . . . . . . . . . . . . . 5 . . . Total Turns 134 | . . . . . . . . . . . . . . . . . . . . . . . . . . . . . . . 134 . . . Longest Duration 41 | . . . . . . . . . . . . . . . . . . . . . . . . . . . . . . . 41 . . . Robots Corrupted 6 | . . . . . . . . . . . . . . . 4 . . . . . 2 . . . . . . . . . . . . . Combat Hostiles 4 | . . . . . . . . . . . . . . . 4 . . . . . . . . . . . . . . . . . . . Parts Fried 7 | . . . . . . . . . . . . . . . . . . . . . 7 . . . . . . . . . . . . . Impact Corruptions . | . . . . . . . . . . . . . . . . . . . . . . . . . . . . . . . . . . . Robots Melted 10 | . . . . . 1 . . . . . 3 . . . . . . . . . . . . . . . . 1 . 1 4 . . . Combat Hostiles 9 | . . . . . 1 . . . . . 2 . . . . . . . . . . . . . . . . 1 . 1 4 . . . Parts Melted 42 | . . . . 1 6 1 1 1 . . 9 . . . . . 1 1 2 2 . . 1 4 . 1 . 3 2 3 3 . . . Heat Transferred 29613 | . . . . 370 2828 888 259 1147 . . 2146 . 666 . 524 1400 1300 1186 324 700 1100 1984 325 2525 243 125 450 1925 1400 1325 4362 . 111 . Parts Sabotaged 1 | . . . . . . . . . . . . . . . . . . . . . . 1 . . . . . . . . . . . . Parts Stolen . | . . . . . . . . . . . . . . . . . . . . . . . . . . . . . . . . . . . Parts Stripped . | . . . . . . . . . . . . . . . . . . . . . . . . . . . . . . . . . . . Power Chain Reactions 1 | . . . . . . . . . . . . . . . 1 . . . . . . . . . . . . . . . . . . . Missiles Intercepted . | . . . . . . . . . . . . . . . . . . . . . . . . . . . . . . . . . . . Alert | -11 -10 -10 -10 -9 -8 -7 -7 -7 -7 -6 -6 -6 -6 -6 -6 -5 -5 -5 -5 -5 -5 -4 -4 -4 -4 -3 -3 -3 -2 -2 -2 -1 -1 -1 ------- Run | Scr Mat Min Exi Min Mat Fac Low Low Dat Pro Fac Low Low Zio Dee Pro Fac Ext Cet Arc Hub Fac Upp Upp Zhi Pro Res Tes Res Qua Sec Acc Com Ac0 Peak Influence 5432 | 20 207 117 . 195 393 212 . . . . 378 . . . . . 476 1189 883 577 1849 1277 . . . . 116 489 383 558 894 5432 3645 . Initial 3476 | . 13 37 . . . 132 . . . . . . . . . . 9 233 665 353 201 896 . . . . . 65 252 215 256 536 3476 . Average 444 | 8 99 66 . 149 227 87 . . . . 155 . . . . . 138 481 784 518 599 944 . . . . 37 293 229 346 501 3178 3525 . Maximum Alert Level 5 | . 1 . . . 1 1 . . . . 1 . . . . . 2 4 3 2 5 4 . . . . . 2 1 2 3 5 5 . Low Security (%) 35 | 100 94 100 . 100 34 96 . . . . 57 . . . . . 70 . . . . . . . . . 100 15 32 2 10 . . . Level 1 31 | . 5 . . . 65 3 . . . . 42 . . . . . 18 47 . 16 19 . . . . . . 63 67 59 40 . . . Level 2 13 | . . . . . . . . . . . . . . . . . 11 38 12 83 70 . . . . . . 21 . 37 16 4 . . Level 3 8 | . . . . . . . . . . . . . . . . . . 11 87 . . 84 . . . . . . . . 32 . . . Level 4 1 | . . . . . . . . . . . . . . . . . . 2 . . 8 15 . . . . . . . . . . . . Level 5 4 | . . . . . . . . . . . . . . . . . . . . . . . . . . . . . . . . . 99 . High Security . | . . . . . . . . . . . . . . . . . . . . . . . . . . . . . . . . . . . Max Security 3 | . . . . . . . . . . . . . . . . . . . . . . . . . . . . . . . . 95 . . Squads Dispatched 115 | . 2 1 . . 5 4 . . . . 6 . . . . 1 8 1 1 . 5 7 . 1 . . 1 6 6 7 10 42 1 . Investigation 8 | . 2 1 . . 1 1 . . . . 1 . . . . . . . 1 . . . . . . . . . . . 1 . . . Extermination 25 | . . . . . . 3 . . . . 1 . . . . . 4 . . . . 2 . . . . 1 4 3 4 3 . . . Reinforcement 28 | . . . . . 1 . . . . . 4 . . . . . 2 . . . 5 1 . . . . . 2 3 3 4 3 . . Assault 42 | . . . . . . . . . . . . . . . . 1 2 1 . . . 4 . 1 . . . . . . 1 31 1 . Garrison 4 | . . . . . 3 . . . . . . . . . . . . . . . . . . . . . . . . . . 1 . . Intercept 8 | . . . . . . . . . . . . . . . . . . . . . . . . . . . . . . . 1 7 . . Searches Triggered . | . . . . . . . . . . . . . . . . . . . . . . . . . . . . . . . . . . . Data Miner Redirects 6 | . . . . . . . . . . . . . . . . . 2 . . . . 4 . . . . . . . . . . . . Construction Impeded 2 | . . . . . . . . . . . . . . . . . . . . . 1 1 . . . . . . . . . . . . Haulers Reinforced 3 | . . . . . . . . . . . 1 . . . . . . . . . 1 . . . . . . . . . 1 . . . Active Scanning Responses . | . . . . . . . . . . . . . . . . . . . . . . . . . . . . . . . . . . . Cargo Convoy Interrupts . | . . . . . . . . . . . . . . . . . . . . . . . . . . . . . . . . . . . Stealth | -11 -10 -10 -10 -9 -8 -7 -7 -7 -7 -6 -6 -6 -6 -6 -6 -5 -5 -5 -5 -5 -5 -4 -4 -4 -4 -3 -3 -3 -2 -2 -2 -1 -1 -1 --------- Run | Scr Mat Min Exi Min Mat Fac Low Low Dat Pro Fac Low Low Zio Dee Pro Fac Ext Cet Arc Hub Fac Upp Upp Zhi Pro Res Tes Res Qua Sec Acc Com Ac0 Distress Signals 39 | . 1 . . . 2 . . . . . 1 . . . . . 1 2 1 . 2 . . . . . 1 . . 1 . 3 24 . Communications Jammed 35 | . . . . . . . . . . . 4 . . . . . 4 . . . . . . . . . . . . 11 16 . . . Distress Signals 29 | . . . . . . . . . . . 3 . . . . . . . . . . . . . . . . . . 11 15 . . . Times Spotted 662 | . 17 18 . 8 43 5 1 17 . 1 24 1 8 . 52 21 19 30 9 10 18 32 2 23 . 1 2 28 13 20 34 151 21 33 Peak Tracking Total 44 | . 4 13 . 4 8 1 1 5 . 1 7 1 4 . 37 6 3 6 5 2 6 7 1 8 . 1 2 5 5 2 6 39 44 6 Tactical Retreats 45 | . 2 1 . . 3 . . 2 . . 4 . 1 . 1 . . 1 . . 2 3 . . . . . . 1 1 1 21 1 . Traps | -11 -10 -10 -10 -9 -8 -7 -7 -7 -7 -6 -6 -6 -6 -6 -6 -5 -5 -5 -5 -5 -5 -4 -4 -4 -4 -3 -3 -3 -2 -2 -2 -1 -1 -1 ------- Run | Scr Mat Min Exi Min Mat Fac Low Low Dat Pro Fac Low Low Zio Dee Pro Fac Ext Cet Arc Hub Fac Upp Upp Zhi Pro Res Tes Res Qua Sec Acc Com Ac0 Traps Triggered 16 | . 3 . . . 1 1 . . . . . . . . . . 2 . . . 1 . . . . . . 1 . 2 . 4 1 . Indirectly . | . . . . . . . . . . . . . . . . . . . . . . . . . . . . . . . . . . . Trap Hack Attempts . | . . . . . . . . . . . . . . . . . . . . . . . . . . . . . . . . . . . Triggered . | . . . . . . . . . . . . . . . . . . . . . . . . . . . . . . . . . . . Disarmed . | . . . . . . . . . . . . . . . . . . . . . . . . . . . . . . . . . . . Reprogrammed . | . . . . . . . . . . . . . . . . . . . . . . . . . . . . . . . . . . . Reused . | . . . . . . . . . . . . . . . . . . . . . . . . . . . . . . . . . . . Traps Extracted . | . . . . . . . . . . . . . . . . . . . . . . . . . . . . . . . . . . . Installed . | . . . . . . . . . . . . . . . . . . . . . . . . . . . . . . . . . . . Triggered . | . . . . . . . . . . . . . . . . . . . . . . . . . . . . . . . . . . . Machines | -11 -10 -10 -10 -9 -8 -7 -7 -7 -7 -6 -6 -6 -6 -6 -6 -5 -5 -5 -5 -5 -5 -4 -4 -4 -4 -3 -3 -3 -2 -2 -2 -1 -1 -1 ---------- Run | Scr Mat Min Exi Min Mat Fac Low Low Dat Pro Fac Low Low Zio Dee Pro Fac Ext Cet Arc Hub Fac Upp Upp Zhi Pro Res Tes Res Qua Sec Acc Com Ac0 Machines Disabled 95 | . 1 . . . 1 . 1 . . 1 2 . . . 2 . 8 1 1 2 28 . . . 1 . . 10 . 7 7 12 3 7 Max in Single Turn 12 | . 1 . . . 1 . 1 . . 1 1 . . . 1 . 6 . 1 1 12 . . . 1 . . 1 . 1 2 2 1 1 Network Hub 2 | . . . . . . . . . . . . . . . . . . . . . 2 . . . . . . . . . . . . . Machines Sabotaged . | . . . . . . . . . . . . . . . . . . . . . . . . . . . . . . . . . . . Garrisons Compromised . | . . . . . . . . . . . . . . . . . . . . . . . . . . . . . . . . . . . Overloaded Fab Kills . | . . . . . . . . . . . . . . . . . . . . . . . . . . . . . . . . . . . Hacking | -11 -10 -10 -10 -9 -8 -7 -7 -7 -7 -6 -6 -6 -6 -6 -6 -5 -5 -5 -5 -5 -5 -4 -4 -4 -4 -3 -3 -3 -2 -2 -2 -1 -1 -1 --------- Run | Scr Mat Min Exi Min Mat Fac Low Low Dat Pro Fac Low Low Zio Dee Pro Fac Ext Cet Arc Hub Fac Upp Upp Zhi Pro Res Tes Res Qua Sec Acc Com Ac0 Machines Accessed 99 | . 11 1 2 . 14 11 . . 4 1 8 . . . . . 5 2 1 . 6 3 1 . 5 . 2 3 2 7 7 1 1 1 Terminals 59 | . 8 . . . 9 4 . . . . 5 . . . . . 3 2 1 . 6 2 . . . . 2 . 1 7 7 1 1 . Fabricators 7 | . . . . . . 2 . . . . 1 . . . . . 1 . . . . 1 . . . . . 1 1 . . . . . Repair Stations 5 | . 1 . . . 1 1 . . . . 2 . . . . . . . . . . . . . . . . . . . . . . . Recycling Units 7 | . 2 . . . 2 3 . . . . . . . . . . . . . . . . . . . . . . . . . . . . Scanalyzers 6 | . . . . . 2 1 . . . . . . . . . . 1 . . . . . . . . . . 2 . . . . . . Garrison Access . | . . . . . . . . . . . . . . . . . . . . . . . . . . . . . . . . . . . Total Hacks 340 | . 42 1 2 . 43 46 . . 27 1 20 . . . . . 20 7 4 . 18 7 1 . 18 . 7 6 6 32 23 2 3 4 Successful 187 | . 22 1 2 . 29 31 . . 27 1 7 . . . . . 11 1 . . 8 2 1 . 18 . 1 5 . 10 4 1 1 4 Failed 153 | . 20 . . . 14 15 . . . . 13 . . . . . 9 6 4 . 10 5 . . . . 6 1 6 22 19 1 2 . Catastrophic 24 | . 2 . . . 1 1 . . . . 2 . . . . . . . 1 . 4 . . . . . 2 . 2 3 6 . . . Database Lockouts . | . . . . . . . . . . . . . . . . . . . . . . . . . . . . . . . . . . . Manual 110 | . 23 . 1 . 19 12 . . . . 1 . . . . . 12 4 1 . 5 3 . . . . . . . 14 15 . . . Terminals 196 | . 26 . . . 24 11 . . . . 14 . . . . . 16 7 4 . 18 6 . . . . 7 . 3 32 23 2 3 . Fabricators 16 | . . . . . . 6 . . . . 3 . . . . . 2 . . . . 1 . . . . . 1 3 . . . . . Repair Stations 13 | . 6 . . . 2 2 . . . . 3 . . . . . . . . . . . . . . . . . . . . . . . Recycling Units 35 | . 10 . . . 9 16 . . . . . . . . . . . . . . . . . . . . . . . . . . . . Scanalyzers 26 | . . . . . 8 11 . . . . . . . . . . 2 . . . . . . . . . . 5 . . . . . . Garrison Access . | . . . . . . . . . . . . . . . . . . . . . . . . . . . . . . . . . . . Terminal Hacks 108 | . 9 1 2 . 11 6 . . 27 1 4 . . . . . 4 1 . . 6 . 1 . 18 . 1 . . 9 1 1 1 4 Record 17 | . . . 1 . . . . . 7 1 . . . . . . . . . . . . . . 6 . . . . 2 . . . . Part Schematic 18 | . 2 . . . . . . . 12 . . . . . . . . . . . . . . . 4 . . . . . . . . . Robot Schematic 5 | . . . . . . . . . 5 . . . . . . . . . . . . . . . . . . . . . . . . . Robot Analysis 17 | . 3 . . . 7 . . . . . . . . . . . 1 . . . . . . . 4 . . . . 2 . . . . Prototype ID Bank 13 | . 2 . . . 2 . . . 3 . . . . . . . . . . . . . . . 4 . 1 . . 1 . . . . Open Door 4 | . . 1 . . . . . . . . . . . . . . . . . . . . 1 . . . . . . . 1 . 1 . Level Access Points 1 | . . . . . . . . . . . . . . . . . . . . . 1 . . . . . . . . . . . . . Branch Access Points 2 | . . . . . . 1 . . . . 1 . . . . . . . . . . . . . . . . . . . . . . . Machine Index 1 | . . . . . . . . . . . . . . . . . . . . . 1 . . . . . . . . . . . . . Terminal Index 1 | . . . . . . . . . . . . . . . . . . . . . . . . . . . . . . 1 . . . . Alert Level 1 | . . . . . . . . . . . . . . . . . . . . . . . . . . . . . . 1 . . . . Unreport Threat 3 | . . . . . 1 . . . . . . . . . . . . . . . 1 . . . . . . . . . . 1 . . Locate Traps 11 | . . . . . . 2 . . . . 2 . . . . . 2 1 . . 2 . . . . . . . . 2 . . . . Recall Investigation 1 | . 1 . . . . . . . . . . . . . . . . . . . . . . . . . . . . . . . . . Hauler Manifests 4 | . 1 . . . 1 1 . . . . 1 . . . . . . . . . . . . . . . . . . . . . . . Registered Components 1 | . . . . . . 1 . . . . . . . . . . . . . . . . . . . . . . . . . . . . Registered Prototypes 1 | . . . . . . 1 . . . . . . . . . . . . . . . . . . . . . . . . . . . . Zone Layout 2 | . . . . . . . . . . . . . . . . . 1 . . . 1 . . . . . . . . . . . . . EX-Prototype ID Bank 1 | . . . 1 . . . . . . . . . . . . . . . . . . . . . . . . . . . . . . . Gate Test 138-B 1 | . . . . . . . . . . . . . . . . . . . . . . . . . . . . . . . . . . 1 Gate Test 138-C 1 | . . . . . . . . . . . . . . . . . . . . . . . . . . . . . . . . . . 1 Gate Test 138-END 2 | . . . . . . . . . . . . . . . . . . . . . . . . . . . . . . . . . . 2 Fabricator Hacks 8 | . . . . . . 4 . . . . 1 . . . . . 1 . . . . 1 . . . . . 1 . . . . . . Network Status 5 | . . . . . . 1 . . . . 1 . . . . . 1 . . . . 1 . . . . . 1 . . . . . . Load Schematic 1 | . . . . . . 1 . . . . . . . . . . . . . . . . . . . . . . . . . . . . Build 2 | . . . . . . 2 . . . . . . . . . . . . . . . . . . . . . . . . . . . . Repair Station Hacks 12 | . 6 . . . 2 2 . . . . 2 . . . . . . . . . . . . . . . . . . . . . . . Scan Component 6 | . 3 . . . 1 1 . . . . 1 . . . . . . . . . . . . . . . . . . . . . . . Repair 6 | . 3 . . . 1 1 . . . . 1 . . . . . . . . . . . . . . . . . . . . . . . Recycling Unit Hacks 6 | . 1 . . . 2 3 . . . . . . . . . . . . . . . . . . . . . . . . . . . . Retrieve Components 6 | . 1 . . . 2 3 . . . . . . . . . . . . . . . . . . . . . . . . . . . . Scanalyzer 25 | . . . . . 8 11 . . . . . . . . . . 2 . . . . . . . . . . 4 . . . . . . Insert Component 14 | . . . . . 5 4 . . . . . . . . . . 1 . . . . . . . . . . 4 . . . . . . Analyze 11 | . . . . . 3 7 . . . . . . . . . . 1 . . . . . . . . . . . . . . . . . Garrison Access Hacks . | . . . . . . . . . . . . . . . . . . . . . . . . . . . . . . . . . . . Unauthorized Hacks 28 | . 6 . . . 6 5 . . . . . . . . . . 4 . . . 2 1 . . . . . . . 1 3 . . . Terminals 14 | . 2 . . . 1 . . . . . . . . . . . 4 . . . 2 1 . . . . . . . 1 3 . . . Assimilate 1 | . . . . . . . . . . . . . . . . . 1 . . . . . . . . . . . . . . . . . Botnet 12 | . 2 . . . 1 . . . . . . . . . . . 2 . . . 2 1 . . . . . . . 1 3 . . . Operators 1 | . . . . . . . . . . . . . . . . . 1 . . . . . . . . . . . . . . . . . Fabricators . | . . . . . . . . . . . . . . . . . . . . . . . . . . . . . . . . . . . Repair Stations . | . . . . . . . . . . . . . . . . . . . . . . . . . . . . . . . . . . . Recycling Units 14 | . 4 . . . 5 5 . . . . . . . . . . . . . . . . . . . . . . . . . . . . Reject 7 | . 2 . . . 2 3 . . . . . . . . . . . . . . . . . . . . . . . . . . . . Recyclers 1 | . . . . . 1 . . . . . . . . . . . . . . . . . . . . . . . . . . . . . Mask 6 | . 2 . . . 2 2 . . . . . . . . . . . . . . . . . . . . . . . . . . . . Scanalyzers . | . . . . . . . . . . . . . . . . . . . . . . . . . . . . . . . . . . . Garrison Access . | . . . . . . . . . . . . . . . . . . . . . . . . . . . . . . . . . . . Data Cores Recovered 2 | . . . . . . . . . . . . . . . . . 1 . . . . 1 . . . . . . . . . . . . Used . | . . . . . . . . . . . . . . . . . . . . . . . . . . . . . . . . . . . Hacking Detections 75 | . 11 . . . 12 9 . . . . 7 . . . . . 5 2 1 . 6 3 . . . . 2 1 2 7 6 1 . . Full Trace Events 7 | . 2 . . . 1 1 . . . . 1 . . . . . . . 1 . . . . . . . . . . . 1 . . . Feedback Events 1 | . 1 . . . . . . . . . . . . . . . . . . . . . . . . . . . . . . . . . Corruption 1 | . 1 . . . . . . . . . . . . . . . . . . . . . . . . . . . . . . . . . Feedback Blocked . | . . . . . . . . . . . . . . . . . . . . . . . . . . . . . . . . . . . Robot Schematics Acquired 6 | . . . . . . . . . 5 . . . . . . . . . . . . . . . . . . . . . 1 . . . Robots Built . | . . . . . . . . . . . . . . . . . . . . . . . . . . . . . . . . . . . Authchips . | . . . . . . . . . . . . . . . . . . . . . . . . . . . . . . . . . . . Time . | . . . . . . . . . . . . . . . . . . . . . . . . . . . . . . . . . . . Total Robot Build Rating . | . . . . . . . . . . . . . . . . . . . . . . . . . . . . . . . . . . . Part Schematics Acquired 34 | . 2 . . . 3 4 . . 12 . . . . . . . 1 . . . . . . . 4 . . . . . 8 . . . Parts Built 2 | . . . . . . 2 . . . . . . . . . . . . . . . . . . . . . . . . . . . . Authchips . | . . . . . . . . . . . . . . . . . . . . . . . . . . . . . . . . . . . Time 116 | . . . . . . 116 . . . . . . . . . . . . . . . . . . . . . . . . . . . . Total Part Build Rating 14 | . . . . . . 14 . . . . . . . . . . . . . . . . . . . . . . . . . . . . Parts Repaired 6 | . 3 . . . 1 1 . . . . 1 . . . . . . . . . . . . . . . . . . . . . . . Time 236 | . 78 . . . 38 50 . . . . 70 . . . . . . . . . . . . . . . . . . . . . . . Parts Recycled . | . . . . . . . . . . . . . . . . . . . . . . . . . . . . . . . . . . . Recycled Matter . | . . . . . . . . . . . . . . . . . . . . . . . . . . . . . . . . . . . Retrieved Matter . | . . . . . . . . . . . . . . . . . . . . . . . . . . . . . . . . . . . Retrieved Components 21 | . 9 . . . 5 7 . . . . . . . . . . . . . . . . . . . . . . . . . . . . Parts Scanalyzed 8 | . . . . . 3 4 . . . . . . . . . . 1 . . . . . . . . . . . . . . . . . Part Schematics Acquired 8 | . . . . . 3 4 . . . . . . . . . . 1 . . . . . . . . . . . . . . . . . Parts Damaged 1 | . . . . . 1 . . . . . . . . . . . . . . . . . . . . . . . . . . . . . Bothacking | -11 -10 -10 -10 -9 -8 -7 -7 -7 -7 -6 -6 -6 -6 -6 -6 -5 -5 -5 -5 -5 -5 -4 -4 -4 -4 -3 -3 -3 -2 -2 -2 -1 -1 -1 ------------ Run | Scr Mat Min Exi Min Mat Fac Low Low Dat Pro Fac Low Low Zio Dee Pro Fac Ext Cet Arc Hub Fac Upp Upp Zhi Pro Res Tes Res Qua Sec Acc Com Ac0 Used RIF Installer . | . . . . . . . . . . . . . . . . . . . . . . . . . . . . . . . . . . . Robots Hacked . | . . . . . . . . . . . . . . . . . . . . . . . . . . . . . . . . . . . Non-combat . | . . . . . . . . . . . . . . . . . . . . . . . . . . . . . . . . . . . Combat . | . . . . . . . . . . . . . . . . . . . . . . . . . . . . . . . . . . . Robot Hacks Applied . | . . . . . . . . . . . . . . . . . . . . . . . . . . . . . . . . . . . Relay Couplers Released . | . . . . . . . . . . . . . . . . . . . . . . . . . . . . . . . . . . . Fabnet Peak Effective % . | . . . . . . . . . . . . . . . . . . . . . . . . . . . . . . . . . . . Robots Rewired 22 | . . . . . . . . . . . . . . . . 1 . 19 . . . . . 2 . . . . . . . . . . Allies Hacked 3 | . . . . . . . . . . . . . . . . . . . 2 . . . . . . . . . . 1 . . . . Hacks Repelled . | . . . . . . . . . . . . . . . . . . . . . . . . . . . . . . . . . . . Allies | -11 -10 -10 -10 -9 -8 -7 -7 -7 -7 -6 -6 -6 -6 -6 -6 -5 -5 -5 -5 -5 -5 -4 -4 -4 -4 -3 -3 -3 -2 -2 -2 -1 -1 -1 -------- Run | Scr Mat Min Exi Min Mat Fac Low Low Dat Pro Fac Low Low Zio Dee Pro Fac Ext Cet Arc Hub Fac Upp Upp Zhi Pro Res Tes Res Qua Sec Acc Com Ac0 Total Allies 131 | . . . . 1 . . . . . 1 . . . 2 . 1 1 29 5 . . . . 2 . . . . . 4 . 39 46 . Largest Group 23 | . . . . 1 . . . . . 1 1 . . 2 2 1 1 23 17 8 6 . . 2 . . . . . 3 . 8 5 . Highest-Rated Group 777 | . . . . 31 . . . . . 96 96 . . 42 42 29 10 777 691 691 519 . . 94 . . . . . 138 . 112 71 . Highest-Rated Ally 159 | . . . . 31 . . . . . 96 96 . . 28 28 29 10 159 152 146 96 . . 47 . . . . . 83 . 46 15 . Total Orders 48 | . . . . . . . 6 18 4 1 . 4 4 . 8 . . 2 . . . . . . . . . . . . . 1 . . STAY 3 | . . . . . . . 2 . . . . . . . . . . 1 . . . . . . . . . . . . . . . . FOLLOW 1 | . . . . . . . . . . . . . . . . . . 1 . . . . . . . . . . . . . . . . EXPLORE 1 | . . . . . . . . . . . . . . . . . . . . . . . . . . . . . . . . 1 . . RETURN 43 | . . . . . . . 4 18 4 1 . 4 4 . 8 . . . . . . . . . . . . . . . . . . . Ally Attacks 832 | . . . . 15 . . 4 56 . 18 24 7 72 . 144 . . 158 66 44 66 . . 5 . . . . . 14 . 113 26 . Total Damage 18992 | . . . . 127 . . 79 787 . 350 754 95 2062 . 2469 . . 3153 2091 1464 2253 . . 109 . . . . . 485 . 2497 217 . Kills 118 | . . . . 3 . . . 8 . 2 4 1 16 . 14 . . 27 11 4 15 . . . . . . . . 1 . 11 1 . Allies Corrupted 4 | . . . . . . . . . . . . . . . . . . 1 . . 1 . . . . . . . . 1 . 1 . . Allies Melted . | . . . . . . . . . . . . . . . . . . . . . . . . . . . . . . . . . . . Turrets Deployed 3 | . . . . . . . . . . . . . . . 3 . . . . . . . . . . . . . . . . . . . Intel | -11 -10 -10 -10 -9 -8 -7 -7 -7 -7 -6 -6 -6 -6 -6 -6 -5 -5 -5 -5 -5 -5 -4 -4 -4 -4 -3 -3 -3 -2 -2 -2 -1 -1 -1 ------- Run | Scr Mat Min Exi Min Mat Fac Low Low Dat Pro Fac Low Low Zio Dee Pro Fac Ext Cet Arc Hub Fac Upp Upp Zhi Pro Res Tes Res Qua Sec Acc Com Ac0 Robot Analysis Total 17 | . 3 . . . 7 . . . . . . . . . . . 1 . . . . . . . 4 . . . . 2 . . . . Derelict Logs Recovered 17 | . . . . 2 . . 1 2 . 1 . 2 2 2 . 1 . . . . . . 1 3 . . . . . . . . . . Drone Launches 185 | . . . . . . . 34 34 31 . . 32 30 . 23 . . . . . . . . . . . . . . . . 1 . . Drone Recoveries 167 | . . . . . . . 4 62 3 28 . 4 47 . 19 . . . . . . . . . . . . . . . . . . . Exploration | -11 -10 -10 -10 -9 -8 -7 -7 -7 -7 -6 -6 -6 -6 -6 -6 -5 -5 -5 -5 -5 -5 -4 -4 -4 -4 -3 -3 -3 -2 -2 -2 -1 -1 -1 ------------- Run | Scr Mat Min Exi Min Mat Fac Low Low Dat Pro Fac Low Low Zio Dee Pro Fac Ext Cet Arc Hub Fac Upp Upp Zhi Pro Res Tes Res Qua Sec Acc Com Ac0 Turns Passed 36834 | 91 1068 596 336 418 1645 1291 1401 1345 131 904 985 1060 1413 1152 2752 1607 1571 1327 336 190 704 877 1296 2459 586 1541 282 1508 1064 1565 1428 683 895 327 Spaces Moved 21194 | 59 718 403 380 373 1155 1079 902 864 86 923 610 658 822 771 1511 637 610 435 96 59 274 327 351 790 170 675 107 452 252 640 605 1351 1355 694 Core 162 | 11 . 23 128 . . . . . . . . . . . . . . . . . . . . . . . . . . . . . . . Treads 1200 | . . . . . . . . . . . . . . . . . . . . . . . . . . . . . 21 640 539 . . . Legs 14354 | . . . 96 373 1155 1079 902 864 86 923 393 . . . . 440 610 435 96 59 274 327 351 790 170 675 107 452 231 . 66 1351 1355 694 Wheels 5478 | 48 718 380 156 . . . . . . . 217 658 822 771 1511 197 . . . . . . . . . . . . . . . . . . Hover . | . . . . . . . . . . . . . . . . . . . . . . . . . . . . . . . . . . . Flight . | . . . . . . . . . . . . . . . . . . . . . . . . . . . . . . . . . . . Fastest Speed 30 | 50 80 50 50 90 90 90 90 90 90 90 90 130 130 130 115 160 180 210 210 210 210 180 180 180 180 180 180 180 158 150 30 30 30 30 Average Speed 126 | 74 112 120 84 90 90 94 121 118 95 92 105 149 147 139 152 198 181 221 210 210 210 207 181 204 233 180 190 207 233 155 136 30 30 30 Slowest Speed 300 | 80 120 135 135 90 170 170 250 250 250 250 170 175 175 145 175 270 210 270 210 210 210 210 210 210 300 180 210 240 240 230 150 90 90 30 Overloaded Moves . | . . . . . . . . . . . . . . . . . . . . . . . . . . . . . . . . . . . Propulsion Burnouts . | . . . . . . . . . . . . . . . . . . . . . . . . . . . . . . . . . . . Robots Hopped . | . . . . . . . . . . . . . . . . . . . . . . . . . . . . . . . . . . . Cave-ins Triggered 1 | . . . . . . . . . . . . . . . . . . . . . . . . . . . . . . . . 1 . . Teleports 2 | . . . . . . . . . . . . . . . . . . . . . . . . . . . . . . . 1 . 1 . Exploration Rate (%) 64 | 3 99 81 70 88 83 28 95 91 70 94 17 80 91 85 91 86 20 63 77 82 56 17 53 96 60 89 6 73 13 78 52 53 62 40 Regions Visited 34 Branch Regions 25 Pre-discovered Areas 10 | . . . 1 1 . . . . 1 . . . 1 1 . . . . . . . . 1 1 3 . . . . . . . . . Known Exits Taken 26 | . . . . . 1 1 1 1 1 1 1 1 . 1 1 1 1 1 1 1 1 1 1 1 1 1 1 1 1 1 1 . . . Unknown Exits Taken 8 | 1 1 1 1 1 . . . . . . . . 1 . . . . . . . . . . . . . . . . . . 1 1 . Scrap Searched 28 | . . 1 . 1 . . 2 2 . 4 . 2 4 2 . 3 . . . . . . 2 2 . 3 . . . . . . . . Spaces Dug 554 | . . . . . 2 4 . 1 . . 2 . . 3 3 7 60 13 . . . 5 2 13 . 6 . 31 3 23 54 264 35 23 Terrain Destroyed 2871 | . . . . . 8 4 2 3 . . 8 . 8 3 32 34 135 24 4 4 385 30 6 48 1 7 5 51 55 40 74 569 992 339 Melee 7 | . . . . . . . . . . . 2 . . 3 . 1 . . . . . . 1 . . . . . . . . . . . Projectile 1378 | . . . . . 8 4 2 3 . . 6 . 8 . 13 33 78 24 4 4 20 30 5 48 1 7 5 51 20 40 74 444 107 339 AOE 1486 | . . . . . . . . . . . . . . . 19 . 57 . . . 365 . . . . . . . 35 . . 125 885 . Terrain Rammed . | . . . . . . . . . . . . . . . . . . . . . . . . . . . . . . . . . . . Walls Destroyed . | . . . . . . . . . . . . . . . . . . . . . . . . . . . . . . . . . . . Machines Disabled . | . . . . . . . . . . . . . . . . . . . . . . . . . . . . . . . . . . . Actions | -11 -10 -10 -10 -9 -8 -7 -7 -7 -7 -6 -6 -6 -6 -6 -6 -5 -5 -5 -5 -5 -5 -4 -4 -4 -4 -3 -3 -3 -2 -2 -2 -1 -1 -1 --------- Run | Scr Mat Min Exi Min Mat Fac Low Low Dat Pro Fac Low Low Zio Dee Pro Fac Ext Cet Arc Hub Fac Upp Upp Zhi Pro Res Tes Res Qua Sec Acc Com Ac0 Total 29383 | 89 897 464 392 429 1581 1308 1201 1132 137 967 847 741 992 821 1866 892 963 741 215 92 339 426 996 1528 353 988 164 890 656 1129 1037 1558 1792 760 Wait 5573 | . 110 23 . 27 269 169 284 213 47 28 129 67 106 . 166 155 257 87 107 9 32 28 605 594 137 297 31 299 339 347 245 35 322 9 Move 21159 | 58 717 402 379 372 1154 1078 901 863 85 922 609 657 821 770 1510 636 609 434 95 58 273 326 350 789 169 674 106 451 251 639 604 1349 1354 694 Hop . | . . . . . . . . . . . . . . . . . . . . . . . . . . . . . . . . . . . Pick Up 276 | 13 13 4 6 6 21 12 . 5 . 2 10 3 10 5 27 9 10 . 2 3 . 3 5 12 6 . 1 15 7 19 27 5 15 . Fast Attach 182 | 4 3 . 2 1 11 3 1 2 1 3 8 1 6 12 16 . 3 3 . . . 3 2 9 8 1 4 3 1 14 10 40 3 4 Attach 100 | 3 . . 3 1 4 1 . 7 . 4 14 . 11 1 13 1 . . . 1 . . . 2 2 . . 1 1 7 6 5 12 . Detach 68 | . . . . 1 . . 2 3 3 1 7 4 6 1 12 3 . . . . . 1 3 . . . . 1 2 2 6 5 5 . Swap 261 | . 7 2 2 2 8 7 . 9 . . 5 3 2 4 7 7 10 7 2 2 4 13 10 15 2 8 9 33 15 17 31 6 12 . Drop 432 | 3 8 5 . 2 18 13 5 4 1 4 9 6 15 15 47 15 13 11 1 3 . 6 12 35 23 2 5 20 7 35 27 42 18 2 Fire 1079 | 8 39 26 . 17 94 25 8 26 . 2 54 . 15 . 68 33 61 26 8 16 28 46 7 53 6 6 8 67 33 49 81 69 49 51 Melee 29 | . . . . . . . . . . 1 2 . . 13 . 11 . . . . . . 2 . . . . . . . . . . . Ram 2 | . . 2 . . . . . . . . . . . . . . . . . . . . . . . . . . . . . . . . Kick 5 | . . . . . 2 . . . . . . . . . . . . . . . 2 . . . . . . . . . . 1 . . Crush . | . . . . . . . . . . . . . . . . . . . . . . . . . . . . . . . . . . . Escape Stasis 6 | . . . . . . . . . . . . . . . . . . 5 . . . . . . . . . . . . . 1 . . Rewire 211 | . . . . . . . . . . . . . . . . 22 . 168 . . . . . 19 . . . . . . . . 2 . Trap . | . . . . . . . . . . . . . . . . . . . . . . . . . . . . . . . . . . . Miscellaneous . | . . . . . . . . . . . . . . . . . . . . . . . . . . . . . . . . . . . Route ------- -11/Scrapyard -10/Materials (discovered 4 exits: [*Mat x3] / *Min) -10/Mines (discovered 2 exits: [*Mat] / *Exi) -10/Exiles -9/Mines -8/Materials (discovered 3 exits: *Fac x3) -7/Factory (discovered 3 exits: *Sto / *Low x2) -7/Lower Caves -7/Lower Caves (discovered 2 exits: *Fac / *Dat) -7/Data Miner -6/Proximity Caves -6/Factory (discovered 2 exits: *Low x2) -6/Lower Caves -6/Lower Caves (discovered 2 exits: *Fac / *Zio) -6/Zion (discovered 2 exits: *Dee / [*Pro]) -6/Deep Caves -5/Proximity Caves -5/Factory (discovered 4 exits: *Fac x3 / *Ext) -5/Extension (discovered 2 exits: *Fac / *Cet) -5/Cetus -5/Archives (discovered 3 exits: *Fac / *Hub x2) -5/Hub_04(d) (discovered 4 exits: *Fac x4) -4/Factory -4/Upper Caves -4/Upper Caves (discovered 2 exits: *Res / *Zhi) -4/Zhirov -3/Proximity Caves -3/Research (discovered 3 exits: Res x2 / *Tes) -3/Testing -2/Research -2/Quarantine (discovered 2 exits: *Acc / *Sec) -2/Section 7 -1/Access (discovered 2 exits: [Sur] / *Com) -1/Command (discovered 3 exits: [Sur x2] / *Ac0) -1/Access_0 Subspace History --------- Turn | Location | Event 22 | -11/Scrapyard | Discovered new exit (range 15) 92 | -11/Scrapyard | Entered Materials 145 | -10/Materials | Discovered new exit (range 16) 223 | -10/Materials | Discovered new exit (range 11) 303 | -10/Materials | Build established: Mutant 349 | -10/Materials | Discovered new exit (range 10) 844 | -10/Materials | Repaired Ion Engine 872 | -10/Materials | Repaired Assault Rifle 899 | -10/Materials | Repaired Lgt. Treads 951 | -10/Materials | Discovered new exit (range 12) 1160 | -10/Materials | Entered Mines 1170 | -10/Mines | Discovered new exit (range 5) 1204 | -10/Mines | Found a hidden stash of uninstalled traps 1526 | -10/Mines | Met a Derelict shopkeep closing up shop 1673 | -10/Mines | Deemed a non-threat by the Exiles lab entrance 1673 | -10/Mines | Discovered new exit (range 5) 1712 | -10/Mines | Assembled infested the area 1734 | -10/Mines | Core integrity fell below 50% 1735 | -10/Mines | Released all parts (6) 1756 | -10/Mines | Entered Exiles 1769 | -10/Exiles | Met 8R-AWN 1777 | -10/Exiles | Met EX-HEX 1792 | -10/Exiles | Met EX-BIN 1797 | -10/Exiles | Met EX-DEC 1800 | -10/Exiles | Learned location of Zion (-6) 1960 | -10/Exiles | Aligned with FarCom system 1961 | -10/Exiles | Given EX-Vault access code 1985 | -10/Exiles | Opened EX-Vault 1991 | -10/Exiles | Found Army-in-a-Box 1993 | -10/Exiles | Found Deploy-a-Sentry 1995 | -10/Exiles | Found Deploy-a-Sentry 1997 | -10/Exiles | Found Deploy-a-Sentry 1999 | -10/Exiles | Found Potential Leg 2001 | -10/Exiles | Found Potential Leg 2025 | -10/Exiles | Warned to stay clear of 0b10 Research branches 2082 | -10/Exiles | Discovered new exit (range 12) 2092 | -10/Exiles | Stole three prototypes: Potential Leg, Army-in-a-Box, Deploy-a-Sentry 2092 | -10/Exiles | Entered Mines 2119 | -9/Mines | Learned location of Storage (-7) 2156 | -9/Mines | Received a Mining Laser from a helpful Derelict 2196 | -9/Mines | Discovered new exit (range 9) 2417 | -9/Mines | Learned 8 Materials zone layouts 2510 | -9/Mines | Entered Materials 2510 | -8/Materials | Evolved 4 slots: Utility x4 2511 | -8/Materials | Identified exit to Factory 2765 | -8/Materials | Garrison activated, responded to threat 2876 | -8/Materials | Destroyed 7 combat bots 3558 | -8/Materials | Discovered exit to Factory (range 19) 4078 | -8/Materials | Discovered exit to Factory (range 20) 4150 | -8/Materials | Repaired Ion Cannon 4155 | -8/Materials | Entered Factory 4155 | -7/Factory | Evolved 2 slots: Utility x2 4157 | -7/Factory | FarCom data flow suspended 4369 | -7/Factory | Discovered new exit (range 10) 4377 | -7/Factory | Identified exit to Lower Caves 4467 | -7/Factory | Fabricated HERF Cannon (x1) 4561 | -7/Factory | Build established: Hacker-Skirmisher 4773 | -7/Factory | Discovered new exit (range 9) 4779 | -7/Factory | Identified exit to Storage 5244 | -7/Factory | Repaired Adv. Sensor Array 5390 | -7/Factory | Fabricated HERF Cannon? 5446 | -7/Factory | Entered Lower Caves 5477 | -7/Lower Caves | Encountered a Warlord checkpoint 5541 | -7/Lower Caves | Identified exit to Lower Caves 6405 | -7/Lower Caves | Build established: Mutant 6427 | -7/Lower Caves | Attacked by a delusional Derelict stockpiling parts 6847 | -7/Lower Caves | Entered another Lower Caves area 6847 | -7/Lower Caves | Accompanied by 30 allies 6849 | -7/Lower Caves | Attracted the attention of an 0b10 checkpoint 6964 | -7/Lower Caves | Discovered new exit (range 12) 6973 | -7/Lower Caves | Identified exit to Factory 7183 | -7/Lower Caves | Learned Factory stockpile data 7991 | -7/Lower Caves | Discovered new exit (range 15) 8138 | -7/Lower Caves | Found Alien Artifact 8138 | -7/Lower Caves | Identified Core Expander 8138 | -7/Lower Caves | Installed Core Expander, added new Weapon slot 8192 | -7/Lower Caves | Identified exit to Data Miner 8192 | -7/Lower Caves | Entered Data Miner 8192 | -7/Data Miner | Discovered new exit (range 6) 8201 | -7/Data Miner | Identified exit to Proximity Caves 8212 | -7/Data Miner | Met Data Miner 8233 | -7/Data Miner | Learned location of Section 7 (-2) 8233 | -7/Data Miner | Acquired the access code to Warlord's prototype stash 8246 | -7/Data Miner | Received God Mode back door access code from Data Miner 8323 | -7/Data Miner | Entered Proximity Caves 8323 | -6/Proximity Caves | Accompanied by 28 allies 8455 | -6/Proximity Caves | Spotted B-75 Beast 8457 | -6/Proximity Caves | Escorted by Enhanced Grunt 8521 | -6/Proximity Caves | Learned Factory terminal intel 8778 | -6/Proximity Caves | Found Alien Artifact 8778 | -6/Proximity Caves | Identified Dimensional Node Initializer 8778 | -6/Proximity Caves | Initialized slip node 8943 | -6/Proximity Caves | Discovered exit to Factory (range 15) 9227 | -6/Proximity Caves | Entered Factory 9227 | -6/Factory | Accompanied by 1 ally 9227 | -6/Factory | Evolved 2 slots: Power x1, Utility x1 9229 | -6/Factory | Loaded intel: 26 terminal locations 9442 | -6/Factory | Repaired Cld. Particle Cannon? 9645 | -6/Factory | Identified exit to Lower Caves 9718 | -6/Factory | Found Prototype Processor 9718 | -6/Factory | Identified Exp. Targeting Computer 10212 | -6/Factory | Entered Lower Caves 10213 | -6/Lower Caves | Encountered a Warlord checkpoint 10716 | -6/Lower Caves | Build established: Scavenger-Skirmisher 10788 | -6/Lower Caves | Identified exit to Lower Caves 10989 | -6/Lower Caves | Learned Factory non-interactive machine intel 11031 | -6/Lower Caves | Attracted the attention of an 0b10 checkpoint 11071 | -6/Lower Caves | Build established: Gunner 11272 | -6/Lower Caves | Entered another Lower Caves area 11272 | -6/Lower Caves | Accompanied by 28 allies 11277 | -6/Lower Caves | Discovered new exit (range 12) 11337 | -6/Lower Caves | Encountered a Warlord checkpoint 11339 | -6/Lower Caves | Identified exit to Factory 11386 | -6/Lower Caves | Learned Factory emergency access door positions 11609 | -6/Lower Caves | Build established: Scavenger-Skirmisher 12495 | -6/Lower Caves | Build established: Gunner 12591 | -6/Lower Caves | Spotted EB-VRJ(f) 12591 | -6/Lower Caves | Spotted IQ-MRJ(f) 12591 | -6/Lower Caves | Spotted 7U-1XQ(f) 12592 | -6/Lower Caves | Spotted TW-PBM(f) 12593 | -6/Lower Caves | Encountered a Master Thief 12593 | -6/Lower Caves | Encountered a Master Thief 12593 | -6/Lower Caves | Encountered a Master Thief 12593 | -6/Lower Caves | Encountered a Master Thief 12594 | -6/Lower Caves | Allies destroyed TW-PBM(f) 12595 | -6/Lower Caves | Allies destroyed 7U-1XQ(f) 12599 | -6/Lower Caves | Allies destroyed IQ-MRJ(f) 12601 | -6/Lower Caves | Allies destroyed EB-VRJ(f) 12623 | -6/Lower Caves | Discovered new exit (range 10) 12685 | -6/Lower Caves | Entered Zion 12755 | -6/Zion | Discovered new exit (range 10) 12766 | -6/Zion | Found CR-A16's Pointy Stick 12866 | -6/Zion | System corruption cleaned by Quarantine Array 12919 | -6/Zion | Identified exit to Deep Caves 12975 | -6/Zion | Build established: Scavenger-Tank 12984 | -6/Zion | Received a visual enhancement algorithm 13038 | -6/Zion | Gained Derelict followers 13276 | -6/Zion | Given the Hacking Drone Bay 13445 | -6/Zion | Found Prototype Processor 13445 | -6/Zion | Identified Exp. Terrain Scan Processor 13448 | -6/Zion | Found Prototype Hackware 13448 | -6/Zion | Identified Exp. System Shield 13451 | -6/Zion | Found Prototype Processor 13451 | -6/Zion | Identified Exp. Signal Interpreter 13457 | -6/Zion | Found Prototype Processor 13457 | -6/Zion | Identified Exp. Armor Integrity Analyzer 13460 | -6/Zion | Found Prototype Processor 13460 | -6/Zion | Identified Exp. Core Analyzer 13581 | -6/Zion | Found Prototype Launcher 13581 | -6/Zion | Identified Gui. Missile Launcher 13671 | -6/Zion | Found Exp. Targeting Computer 13827 | -6/Zion | Saw the warning signs outside the Deep Caves entrance 13837 | -6/Zion | Entered Deep Caves 13837 | -6/Deep Caves | Accompanied by 2 allies 14049 | -6/Deep Caves | DAS Turret deployed 14051 | -6/Deep Caves | DAS Turret deployed 14081 | -6/Deep Caves | Z-Facility disabled 14152 | -6/Deep Caves | DAS Turret deployed 14156 | -6/Deep Caves | Attacked by Z-Imprinter 14162 | -6/Deep Caves | Allies destroyed Z-Imprinter 14358 | -6/Deep Caves | Build established: Scavenger-Gunner 14677 | -6/Deep Caves | Discovered new exit (range 15) 14990 | -6/Deep Caves | Found Prototype Protection 14990 | -6/Deep Caves | Identified Zio. Heavy Carapace 14992 | -6/Deep Caves | Found Prototype Protection 14992 | -6/Deep Caves | Identified Zio. Weapon Casing 15031 | -6/Deep Caves | Found Zio. Weapon Casing 15037 | -6/Deep Caves | Found Zio. Heavy Carapace 15147 | -6/Deep Caves | Found Zio. Weapon Casing 15278 | -6/Deep Caves | Build established: Scavenger-Tank 15283 | -6/Deep Caves | Spotted as-32661 15339 | -6/Deep Caves | Destroyed as-32661 15375 | -6/Deep Caves | Spotted as-01715 15414 | -6/Deep Caves | Destroyed as-01715 15764 | -6/Deep Caves | Build established: Scavenger-Mutant 15778 | -6/Deep Caves | Triggered Deep Caves wall 15778 | -6/Deep Caves | Spotted AS-29469 15778 | -6/Deep Caves | Spotted AS-71889 15782 | -6/Deep Caves | Destroyed AS-71889 15797 | -6/Deep Caves | Destroyed AS-29469 15825 | -6/Deep Caves | Destroyed 38 combat bots 15830 | -6/Deep Caves | Lost 3 parts (1p2u) 15851 | -6/Deep Caves | Exposed GOLEM chamber 15876 | -6/Deep Caves | Found GOLEM Unit 15920 | -6/Deep Caves | Found GOLEM Unit 15924 | -6/Deep Caves | Found GOLEM Unit 15930 | -6/Deep Caves | Found GOLEM Unit 15935 | -6/Deep Caves | Found GOLEM Unit 15971 | -6/Deep Caves | Found GOLEM Unit 15999 | -6/Deep Caves | Found Longsword +1 16223 | -6/Deep Caves | Build established: Golem 16309 | -6/Deep Caves | Found Surveybot 24 Chip 16313 | -6/Deep Caves | Found Surveybot 24 Scanner 16587 | -6/Deep Caves | Identified exit to Proximity Caves 16589 | -6/Deep Caves | Entered Proximity Caves 16780 | -5/Proximity Caves | Learned 4 Factory zone layouts 16817 | -5/Proximity Caves | Attracted the attention of an 0b10 outpost 16878 | -5/Proximity Caves | Destroyed 7 combat bots 17357 | -5/Proximity Caves | Attracted the attention of an 0b10 checkpoint 17490 | -5/Proximity Caves | Spotted B-75 Beast 17576 | -5/Proximity Caves | Core integrity fell below 50% 17599 | -5/Proximity Caves | Revealed the true nature of CR-A16's Pointy Stick 17607 | -5/Proximity Caves | Destroyed B-75 Beast 18020 | -5/Proximity Caves | Discovered exit to Factory (range 13) 18196 | -5/Proximity Caves | Entered Factory 18196 | -5/Factory | Evolved 2 slots: Utility x2 18197 | -5/Factory | Identified exit to Extension 18198 | -5/Factory | Identified exit to Factory 18200 | -5/Factory | Loaded intel: 231 non-interactive machine locations 19459 | -5/Factory | Discovered exit to Factory (range 14) 19743 | -5/Factory | First assault squad dispatched 19764 | -5/Factory | Incoming assault squad redirected 19764 | -5/Factory | Incoming assault squad redirected 19767 | -5/Factory | Entered Extension 20285 | -5/Extension | Build established: Commander-Golem 20345 | -5/Extension | Rescued A7 20370 | -5/Extension | Rescued a captive Derelict 20457 | -5/Extension | Rescued a captive Derelict 20482 | -5/Extension | Rescued a captive Derelict 20606 | -5/Extension | Rescued a captive Derelict 20607 | -5/Extension | Rescued a captive Derelict 20633 | -5/Extension | Rescued a captive Derelict 20634 | -5/Extension | Rescued a captive Derelict 20854 | -5/Extension | Rescued a captive Derelict 20947 | -5/Extension | Rescued a captive Derelict 20967 | -5/Extension | First assault squad dispatched 21049 | -5/Extension | Discovered exit to Factory (range 10) 21054 | -5/Extension | Discovered new exit (range 6) 21062 | -5/Extension | Identified exit to Cetus 21094 | -5/Extension | Entered Cetus 21094 | -5/Cetus | Accompanied by 17 allies (A7) 21099 | -5/Cetus | Acquired a Cetus Manufacturing Module code from A7 21102 | -5/Cetus | Spotted Cetus Guard 21103 | -5/Cetus | Spotted Cetus Guard 21107 | -5/Cetus | Spotted Cetus Guard 21107 | -5/Cetus | Spotted Cetus Guard 21113 | -5/Cetus | Allies destroyed Cetus Guard 21126 | -5/Cetus | Allies destroyed Cetus Guard 21133 | -5/Cetus | Destroyed Cetus Guard 21136 | -5/Cetus | Destroyed Cetus Guard 21234 | -5/Cetus | Escorted A7 to Cetus Mainframe 21263 | -5/Cetus | Started Cetus Manufacturing Module 21275 | -5/Cetus | Discovered new exit (range 21) 21288 | -5/Cetus | Manufactured an Enhanced Grunt 21313 | -5/Cetus | Manufactured an Enhanced Grunt 21324 | -5/Cetus | Identified exit to Archives 21338 | -5/Cetus | Manufactured an Enhanced Grunt 21363 | -5/Cetus | Manufactured an Enhanced Grunt 21388 | -5/Cetus | Manufactured an Enhanced Grunt 21430 | -5/Cetus | Entered Archives 21430 | -5/Archives | Accompanied by 8 allies (A7) 21435 | -5/Archives | Received a hacking code to weaken MAIN.C 21487 | -5/Archives | Discovered new exit (range 22) 21495 | -5/Archives | Discovered new exit (range 20) 21579 | -5/Archives | Discovered exit to Factory (range 18) 21614 | -5/Archives | Identified exit to Hub_04(d) 21620 | -5/Archives | Entered Hub_04(d) 21620 | -5/Hub_04(d) | Accompanied by 6 allies 22255 | -5/Hub_04(d) | Network Hub disabled 22261 | -5/Hub_04(d) | Spotted Lightning 22280 | -5/Hub_04(d) | Destroyed Lightning 22290 | -5/Hub_04(d) | Build established: Hacker-Golem 22292 | -5/Hub_04(d) | Spotted Lightning 22294 | -5/Hub_04(d) | Spotted Lightning 22318 | -5/Hub_04(d) | Network Hub disabled 22324 | -5/Hub_04(d) | Entered Factory 22324 | -4/Factory | Evolved 2 slots: Power x1, Utility x1 22350 | -4/Factory | Lost 4 parts (2u2w) 22612 | -4/Factory | First assault squad dispatched 22638 | -4/Factory | Incoming assault squad redirected 22860 | -4/Factory | Build established: Generator-Golem 22902 | -4/Factory | Incoming assault squad redirected 23008 | -4/Factory | Incoming assault squad redirected 23079 | -4/Factory | Discovered new exit (range 22) 23103 | -4/Factory | Incoming assault squad redirected 23140 | -4/Factory | Destroyed 7 combat bots 23192 | -4/Factory | Identified exit to Upper Caves 23201 | -4/Factory | Entered Upper Caves 23962 | -4/Upper Caves | Spotted B-86 Titan 23971 | -4/Upper Caves | Destroyed B-86 Titan 24088 | -4/Upper Caves | Encountered a Warlord checkpoint 24140 | -4/Upper Caves | Learned location of Armory (-4) 24304 | -4/Upper Caves | Discovered new exit (range 23) 24486 | -4/Upper Caves | Identified exit to Upper Caves 24497 | -4/Upper Caves | Entered another Upper Caves area 24631 | -4/Upper Caves | Discovered new exit (range 21) 24973 | -4/Upper Caves | Attracted the attention of an 0b10 outpost 25016 | -4/Upper Caves | Destroyed 10 combat bots 25408 | -4/Upper Caves | Identified exit to Research 25477 | -4/Upper Caves | Attracted the attention of an 0b10 checkpoint 25788 | -4/Upper Caves | Learned location of 2 exits from Research 26107 | -4/Upper Caves | Learned location of Testing (-3) 26650 | -4/Upper Caves | Discovered new exit (range 24) 26768 | -4/Upper Caves | Encountered a Warlord checkpoint 26876 | -4/Upper Caves | Identified exit to Zhirov 26956 | -4/Upper Caves | Entered Zhirov 26956 | -4/Zhirov | Discovered new exit (range 3) 26994 | -4/Zhirov | Met Zhirov 27040 | -4/Zhirov | Learned location of Quarantine (-2) 27040 | -4/Zhirov | Learned location of Command (-1) 27053 | -4/Zhirov | Zhirov requested help retrieving the SGEMP Prototype 27091 | -4/Zhirov | Found Alien Artifact 27091 | -4/Zhirov | Identified Integrated Reactor 27091 | -4/Zhirov | Installed Integrated Reactor, increased core energy generation (+10) 27121 | -4/Zhirov | Found Alien Artifact 27385 | -4/Zhirov | Identified exit to Proximity Caves 27542 | -4/Zhirov | Entered Proximity Caves 28806 | -3/Proximity Caves | Discovered exit to Research (range 20) 29083 | -3/Proximity Caves | Entered Research 29083 | -3/Research | Evolved 2 slots: Propulsion x2 29084 | -3/Research | Identified exit to Research 29084 | -3/Research | Identified exit to Testing 29088 | -3/Research | Discovered exit to Research (range 19) 29365 | -3/Research | Entered Testing 29415 | -3/Testing | Spotted Alpha 7 29503 | -3/Testing | Found Prototype Device 29626 | -3/Testing | Identified Exp. Thermal Shield 30010 | -3/Testing | Found Prototype Energy Cannon 30010 | -3/Testing | Identified Null Cannon 30193 | -3/Testing | Found Prototype Energy Cannon 30363 | -3/Testing | Discovered exit to Research (range 22) 30537 | -3/Testing | Identified Transdimensional Reconstructor 30636 | -3/Testing | Found Prototype Device 30873 | -3/Testing | Entered Research 30873 | -2/Research | Evolved 2 slots: Propulsion x2 31558 | -2/Research | Discovered new exit (range 24) 31741 | -2/Research | Identified exit to Quarantine 31937 | -2/Research | Entered Quarantine 32322 | -2/Quarantine | Allied Derelicts emerged from ambush trap array 32383 | -2/Quarantine | Found Alien Energy Cannon 32442 | -2/Quarantine | Found Alien Artifact 32442 | -2/Quarantine | Identified Core Reset Matrix 32442 | -2/Quarantine | Identified Core Cannon 32442 | -2/Quarantine | Used Core Reset Matrix 32446 | -2/Quarantine | Detected hypermatrix surge 32446 | -2/Quarantine | Sensed 12 artifacts in vicinity 32590 | -2/Quarantine | Identified AEGIS Remote Shield 32687 | -2/Quarantine | Found Sigix Terminator 32885 | -2/Quarantine | Found Subatomic Replicator 32955 | -2/Quarantine | Discovered new exit (range 23) 33000 | -2/Quarantine | Identified exit to Access 33010 | -2/Quarantine | Found Hpw. Transdimensional Reconstructor 33016 | -2/Quarantine | Found Hpw. Transdimensional Reconstructor 33019 | -2/Quarantine | Found Hpw. Transdimensional Reconstructor 33031 | -2/Quarantine | Found Dimensional Node Initializer 33174 | -2/Quarantine | Spotted Fortress 33275 | -2/Quarantine | Build established: Generator-Mutant 33276 | -2/Quarantine | Discovered new exit (range 6) 33282 | -2/Quarantine | Identified exit to Section 7 33502 | -2/Quarantine | Entered Section 7 33503 | -2/Section 7 | Sensed 23 artifacts in vicinity 33659 | -2/Section 7 | Found Microwarp Drive 34052 | -2/Section 7 | Spotted S7 Guard 34076 | -2/Section 7 | Found Integrated Thermoelectric Network 34076 | -2/Section 7 | Installed Integrated Thermoelectric Network, gained heat-energy exchange potential 34086 | -2/Section 7 | Destroyed S7 Guard 34255 | -2/Section 7 | Spotted S7 Guard 34271 | -2/Section 7 | Destroyed S7 Guard 34278 | -2/Section 7 | First assault squad dispatched 34306 | -2/Section 7 | Scanned by Researcher 34387 | -2/Section 7 | Found Sigix Shearcannon 34464 | -2/Section 7 | Initialized slip node 34562 | -2/Section 7 | Spotted Executioner 34565 | -2/Section 7 | Spotted Executioner 34602 | -2/Section 7 | Destroyed Executioner 34609 | -2/Section 7 | Destroyed Executioner 34798 | -2/Section 7 | Found Prototype Device 34798 | -2/Section 7 | Identified Exp. Force Field 34802 | -2/Section 7 | Found Prototype Processor 34802 | -2/Section 7 | Identified Spectral Analyzer 34807 | -2/Section 7 | Found Exp. Force Field 34816 | -2/Section 7 | Spotted Executioner 34816 | -2/Section 7 | Spotted Executioner 34854 | -2/Section 7 | Integrated with Sigix Exoskeleton 34899 | -2/Section 7 | Warped through subspace to slip node 34914 | -2/Section 7 | Discovered exit to Access (range 16) 34916 | -2/Section 7 | Found Core Reset Matrix 34920 | -2/Section 7 | Intercept squad dispatched 34930 | -2/Section 7 | Entered Access 34930 | -1/Access | Evolved 2 slots: Utility x2 34935 | -1/Access | Emitted hypermatrix ping 34940 | -1/Access | Assembled emerged from beneath the floor 35028 | -1/Access | Found Prototype Device 35028 | -1/Access | Identified Exp. Thermal Shield 35068 | -1/Access | Assembled emerged from beneath the floor 35148 | -1/Access | Build established: Alien-Sigix 35164 | -1/Access | Assembled emerged from beneath the floor 35194 | -1/Access | Discovered new exit (range 18) 35225 | -1/Access | Assembled emerged from beneath the floor 35251 | -1/Access | Spotted Striker 35251 | -1/Access | Spotted Executioner 35252 | -1/Access | Intercept squad dispatched 35255 | -1/Access | Spotted Tracker 35255 | -1/Access | Spotted Tracker 35256 | -1/Access | Destroyed Tracker 35258 | -1/Access | Destroyed Tracker 35262 | -1/Access | Spotted Combat Programmer 35262 | -1/Access | Spotted Combat Programmer 35265 | -1/Access | Destroyed Combat Programmer 35269 | -1/Access | Destroyed Combat Programmer 35288 | -1/Access | Destroyed Striker 35331 | -1/Access | Destroyed 12 combat bots 35351 | -1/Access | Spotted Executioner 35388 | -1/Access | Crushed by falling debris 35406 | -1/Access | Destroyed 8 combat bots 35472 | -1/Access | Assembled emerged from beneath the floor 35515 | -1/Access | Intercept squad dispatched 35555 | -1/Access | Spotted Tracker 35555 | -1/Access | Allied Derelicts emerged from ambush trap array 35555 | -1/Access | Spotted Tracker 35557 | -1/Access | Spotted Tracker 35558 | -1/Access | Destroyed Tracker 35560 | -1/Access | Destroyed Tracker 35560 | -1/Access | Destroyed Tracker 35564 | -1/Access | Found Prototype Device 35580 | -1/Access | Discovered new exit (range 18) 35580 | -1/Access | Spotted Combat Programmer 35588 | -1/Access | Garrison activated, responded to threat 35591 | -1/Access | Destroyed Combat Programmer 35613 | -1/Access | Entered Command 35618 | -1/Command | Emitted hypermatrix ping 35623 | -1/Command | Assembled emerged from beneath the floor 35660 | -1/Command | Assembled emerged from beneath the floor 35686 | -1/Command | Spotted M Guard 35687 | -1/Command | Spotted M Guard 35689 | -1/Command | Spotted Combat Programmer 35690 | -1/Command | Spotted Combat Programmer 35701 | -1/Command | Destroyed Combat Programmer 35708 | -1/Command | Destroyed M Guard 35714 | -1/Command | Destroyed M Guard 35714 | -1/Command | All MAIN.C guards destroyed 35737 | -1/Command | Fired Sigix Terminator 35737 | -1/Command | High security lockdown imminent 35737 | -1/Command | MAIN.C activated Command garrisons 35750 | -1/Command | Identified Exp. Phase Shifter 35752 | -1/Command | Met MAIN.C 35753 | -1/Command | 0b10 Conduit disabled 35758 | -1/Command | Destroyed 86 combat bots 35776 | -1/Command | MAIN.C's shell transforms into a squad of autonomous robots 35776 | -1/Command | Destroyed MAIN.C Shell 35776 | -1/Command | Spotted M Shell/Def 35776 | -1/Command | Spotted M Shell/Atk 35776 | -1/Command | Spotted M Shell/Def 35776 | -1/Command | Spotted M Shell/Atk 35776 | -1/Command | Spotted M Shell/Atk 35776 | -1/Command | Spotted M Shell/Def 35776 | -1/Command | Spotted M Shell/Atk 35776 | -1/Command | Spotted M Shell/Def 35783 | -1/Command | Sigix Exoskeleton integrity reduced to 80% 35829 | -1/Command | Destroyed MAIN.C 35890 | -1/Command | Destroyed M Shell/Atk 35892 | -1/Command | Discovered new exit (range 21) 35892 | -1/Command | Discovered new exit (range 104) 35892 | -1/Command | Extracted map data and part IDs from MAIN.C's data core 35894 | -1/Command | Found Exp. System Purifier 35897 | -1/Command | Found Zero-point Reactor 35899 | -1/Command | Found Exp. Cloaking Device 35904 | -1/Command | Found Exp. Targeting Computer 36001 | -1/Command | Spotted B-99 Colossus 36188 | -1/Command | Spotted Executioner 36249 | -1/Command | Found Exp. Core Analyzer 36283 | -1/Command | Assembled emerged from beneath the floor 36388 | -1/Command | Assembled emerged from beneath the floor 36411 | -1/Command | Assembled emerged from beneath the floor 36433 | -1/Command | Assembled emerged from beneath the floor 36455 | -1/Command | Assembled emerged from beneath the floor 36503 | -1/Command | Warped through subspace to slip node 36503 | -1/Command | Discovered new exit (range 5) 36508 | -1/Command | Entered Access_0 36509 | -1/Access_0 | Sensed 3 artifacts in vicinity 36509 | -1/Access_0 | Met Architect 36513 | -1/Access_0 | Architect warped through subspace 36514 | -1/Access_0 | Destroyed A8 36545 | -1/Access_0 | Architect warped through subspace 36563 | -1/Access_0 | Architect warped through subspace 36569 | -1/Access_0 | Subspace Access Node disabled 36577 | -1/Access_0 | Destroyed 7 combat bots 36585 | -1/Access_0 | Architect warped through subspace 36595 | -1/Access_0 | Subspace Access Node disabled 36609 | -1/Access_0 | A6 warped into view 36621 | -1/Access_0 | Core integrity fell below 50% 36621 | -1/Access_0 | Destroyed A6 36627 | -1/Access_0 | Architect warped through subspace 36671 | -1/Access_0 | Found Core Regenerator 36671 | -1/Access_0 | Used Core Regenerator, restored core integrity (+400) 36686 | -1/Access_0 | Destroyed A2 36689 | -1/Access_0 | Extracted Singularity Gate Test 138-C access codes from A2's data core 36694 | -1/Access_0 | Architect warped through subspace 36704 | -1/Access_0 | Found Core Expander 36704 | -1/Access_0 | Installed Core Expander, added new Power slot 36727 | -1/Access_0 | Architect warped through subspace 36761 | -1/Access_0 | A5 warped into view 36764 | -1/Access_0 | Destroyed A5 36769 | -1/Access_0 | Architect warped through subspace 36778 | -1/Access_0 | Subspace Access Node disabled 36788 | -1/Access_0 | Architect warped through subspace 36835 | -1/Access_0 | Started Test 138-B, establishing a local singularity 36835 | -1/Access_0 | Started Test 138-C, cascade imminent 36835 | *** | Destroyed Tau Ceti IV! Last Messages --------------- 36827_ Quantum Shear penetrates Machine. 36827_ Machine disabled. 36835_ Connecting with Gate Controls... 36835_ Current location identified: Access_0 >>Gate Test 138-A Running Singularity Gate diagnostics... All systems nominal. >>Gate Test 138-B Preparing Singularity Gate activation... Stable singularity established. >>Gate Test 138-C Initiating Test 138-C... Warning: Experimental formulas incomplete. Potential effects include instability. Repeat command to confirm test. >>Gate Test 138-C Initiating Test 138-C... Applying incomplete calculations.... INSTABILITY DETECTED, CASCADE IMMINENT. [Achievement: Stardust] Map ----- +----------------------------------------------------+ | ??????????????????????????????????????############ | | ??????????????????????????????????????############ | | ??????????????????????????????????????############ | | ??????????????????????????????????????############ | | ?????????????????????????????????????############# | | ??????????????????????????????????????############ | | ??????????????????????????????????????############ | | ?????????????????????????#???????????############# | | ???????????????????? ##### ??????############# | | ?????????????????## ##### #??############## | | ????????????????#### ###### ############# | | ??????????????###### ####### ### ############# | | ?????????????##""""" """""###### ############# | | ????????????####"""" """"####### ############# | | ???????????#####" "####### ############# | | ???????????####"" ""###### ############# | | ??????????#####"" ""###### ############# | | ?????????#######" "####### ############# | | ?????????#######" "####### ############# | | ?????????#######" "####### ############# | | ????????########" "####### ############" | | ????????########" "####### ##### ##"" | | ????????#######"" ""###### ## " | | ????????#######"" ""###### ## #######"" | | ???????#########" "####### ###########"" | | ???????#########"""" XA""####### ############# | | ???????########""""" """""###### ############# | | ???????############# ########### ############# | | ???????############# ########### ############# | | ??????############## ########### ############# | | ???????############# ########### ############# | | ???????############# ########### ############# | | ??????############## ########### ############# | | ???????############# ########### #####"#####" | | ???????############# ########## ##"" """ | | ??????############## ##### #### ###" | | ???????############# ##### ### ![ | | ???????############ 0 !! | | ???????############ ###" = | | ???????############ ######## ####"" """ !! | | ???????############ ######## ## #######"###""" | | ????????########### ###### #### ########### ## | | ????????########### ##### ##### ######### ### | | ????????########### #### ### #### | | ?????????######### # # ## ##### | | ??????????######## ##### #### # # ###### | | ??????????##### ###### #### ##"# " ####### | | ???????????#### ###### #"" ## # ######## | | ????????????### ###### ## "######### | | ?????????????## ## # "## ########## | +----------------------------------------------------+ Best States ------------- Heat Dissipation 127 Coolant Potential 65 Energy Generation 88 Energy Capacity 1350 Matter Stores 300 Matter Capacity 300 Sight Range 24 Robot Scan Range 16 Terrain Scan Range 24 Terrain Scan Density 2010 ECM Strength 1 Jamming Range 14 Cloak Strength 4 Power Amplification 30 Additional Mass Support 20 Corruption Block 17 Armor Coverage 1600 Resistance: KI 50 Resistance: TH 50 Resistance: EX 50 Resistance: EM 50 Resistance: I 50 Resistance: S 50 Resistance: P 50 Propulsion Shielding 66 Weapon Shielding 100 Phase Shifting 20 Evasion (%) 89 Targeting Accuracy 16 Core Analysis 8 Armor Integrity Analysis 50 Recoil Reduction 6 Energy Filtering 50 Offensive Hacking 12 Defensive Hacking 16 Item Schematics ----------------- Exp. Signal Interpreter | -2/Section 7 | Archive Exp. Energy Well | -2/Section 7 | Archive Prc. Phase Gun | -2/Section 7 | Archive Com. Linear Accelerator | -2/Section 7 | Archive Hvy. Proton Cannon | -2/Section 7 | Archive Imp. Matter Neutralizer | -2/Section 7 | Archive Hdn. Centrium Wheel | -2/Section 7 | Archive Particle Accelerator | -2/Section 7 | Archive Robot Schematics ------------------ E-15 Imp | -2/Section 7 | Archive Fabricated ------------ HERF Cannon | x1 | -7/Factory | Preloaded HERF Cannon | x1 | -7/Factory Alien Tech Used ----------------- Core Expander Dimensional Node Initializer Integrated Reactor Core Reset Matrix Integrated Thermoelectric Network Sigix Exoskeleton Sigix Sheargun Sigix Shearcannon High-powered Transdimensional Reconstructor Core Cannon Sigix Terminator Core Regenerator Achievements -------------- Stardust What Is This Thing? Challenges ------------ None Game ------ Seed SmartbombDimensionalShield Manual? 0 Play Time 10:16:31 Cumulative 171.1 hours Start 2022.05.18 @ 18:54:01 End 2022.05.24 @ 14:24:08 Sessions 17 Manual Loads 0 Difficulty Rogue Special Mode None Game No. 28 Rogue 21 Adventurer 1 Explorer 6 Win Type 5 Total 9 Types 4/1/3/0/0/1/0/0/0 Lore% 76 Gallery% 71 Achievement% 65 Wizard Run 0 Options --------- ASCII 0 Keyboard 0 Movement Mouse Keybinds 0 Fullscreen 1 Font 18/SmallcapsGlow Map View 76x50 Tactical HUD 1 Map Filters NONE Filters NONE Steam 1 RUN: a5a8621c-d9e0-4059-9c85-dd3052e81f9e